Workbook

Sheet Factsheet
B2: Factsheet (empresas argentinas no financieras) | AB2: Data: | AC2: =IF(AF2="",_xll.ECONOMATICA("MERVAL","Date of Last Quote"),AF2) -> 2020-09-03
B4: YPFD | AD4: =IFERROR(UPPER(_xll.ECONOMATICA($B$4,"name")&" "&_xll.ECONOMATICA($B$4,"class")&" | Sector: "&_xll.ECONOMATICA($B$4,"Sector Economatica")&" | Subsector: "&_xll.ECONOMATICA($B$4,"Sector NAICS")),"") -> YPF S.A. ORD D | SECTOR: PETRÓLEO Y GAS | SUBSECTOR: EXTRACCIÓN DE PETRÓLEO Y GAS
B6: HIGHLIGHTS DE MERCADO | I6: Thousands | L6: CUADRO DE RENTABILIDAD
E7: =AC2 -> 2020-09-03 | G7: =IFERROR(DATE(YEAR($E$7)-1,12,31),"") -> 2019-12-31 | I7: =IFERROR(DATE(YEAR($E$7)-2,12,31),"") -> 2018-12-31 | L7: Itens | O7: 1D | Q7: 1M | S7: 6M | U7: 12M | W7: 24M | Y7: 36M | AA7: 48M | AC7: 60M
B8: Precio | E8: =IFERROR(_xll.ECONOMATICA($B$4,"close",,E$7,,,,,,,,{"tc.pers=3"}),"") -> 676.9 | G8: =IFERROR(_xll.ECONOMATICA($B$4,"close",,G$7,,,,,,,,{"tc.pers=3"}),"") -> 857.2 | I8: =IFERROR(_xll.ECONOMATICA($B$4,"close",,I$7,,,,,,,,{"tc.pers=3"}),"") -> 498.3443069 | L8: Retorno Nominal | O8: =IFERROR(_xll.ECONOMATICA($B$4,"RETURN",O$7,$AC$2,,,,"decimal"),"") -> -0.02224469161 | Q8: =IFERROR(_xll.ECONOMATICA($B$4,"RETURN",Q$7,$AC$2,,,,"decimal"),"") -> -0.1698552857 | S8: =IFERROR(_xll.ECONOMATICA($B$4,"RETURN",S$7,$AC$2,,,,"decimal"),"") -> 0.01613750657 | U8: =IFERROR(_xll.ECONOMATICA($B$4,"RETURN",U$7,$AC$2,,,,"decimal"),"") -> 0.3458594294 | W8: =IFERROR(_xll.ECONOMATICA($B$4,"RETURN",W$7,$AC$2,,,,"decimal"),"") -> 0.2349401461 | Y8: =IFERROR(_xll.ECONOMATICA($B$4,"RETURN",Y$7,$AC$2,,,,"decimal"),"") -> 0.9748667114 | AA8: =IFERROR(_xll.ECONOMATICA($B$4,"RETURN",AA$7,$AC$2,,,,"decimal"),"") -> 1.63863759 | AC8: =IFERROR(_xll.ECONOMATICA($B$4,"RETURN",AC$7,$AC$2,,,,"decimal"),"") -> 1.287025994
B9: Máximo | E9: =IFERROR(_xll.ECONOMATICA($B$4,"High","in the year",E$7),"") -> 870 | G9: =IFERROR(_xll.ECONOMATICA($B$4,"High","in the year",G$7),"") -> 894.85 | I9: =IFERROR(_xll.ECONOMATICA($B$4,"High","in the year",I$7),"") -> 664.0167152 | L9: Retorno Anualizado | O9: - | Q9: =IFERROR(_xll.ECONOMATICA($B$4,"RETURN",Q7,$AC$2,,,,"decimal",,,,{"std.tec.ppr.per=4";"std.tec.ppr.pertd=false"}),"") -> -0.8814385213 | S9: =IFERROR(_xll.ECONOMATICA($B$4,"RETURN",S7,$AC$2,,,,"decimal",,,,{"std.tec.ppr.per=4";"std.tec.ppr.pertd=false"}),"") -> 0.03390241323 | U9: =IFERROR(_xll.ECONOMATICA($B$4,"RETURN",U7,$AC$2,,,,"decimal",,,,{"std.tec.ppr.per=4";"std.tec.ppr.pertd=false"}),"") -> 0.3607472595 | W9: =IFERROR(_xll.ECONOMATICA($B$4,"RETURN",W7,$AC$2,,,,"decimal",,,,{"std.tec.ppr.per=4";"std.tec.ppr.pertd=false"}),"") -> 0.1156297863 | Y9: =IFERROR(_xll.ECONOMATICA($B$4,"RETURN",Y7,$AC$2,,,,"decimal",,,,{"std.tec.ppr.per=4";"std.tec.ppr.pertd=false"}),"") -> 0.264798274 | AA9: =IFERROR(_xll.ECONOMATICA($B$4,"RETURN",AA7,$AC$2,,,,"decimal",,,,{"std.tec.ppr.per=4";"std.tec.ppr.pertd=false"}),"") -> 0.2846915531 | AC9: =IFERROR(_xll.ECONOMATICA($B$4,"RETURN",AC7,$AC$2,,,,"decimal",,,,{"std.tec.ppr.per=4";"std.tec.ppr.pertd=false"}),"") -> 0.1865088286
B10: Mínimo | E10: =IFERROR(_xll.ECONOMATICA($B$4,"Low","in the year",E$7),"") -> 218.65 | G10: =IFERROR(_xll.ECONOMATICA($B$4,"Low","in the year",G$7),"") -> 488.3 | I10: =IFERROR(_xll.ECONOMATICA($B$4,"Low","in the year",I$7),"") -> 370.9368954 | L10: MERVAL | O10: =IFERROR(_xll.ECONOMATICA("MERVAL","RETURN",O7,$AC$2,,,,"decimal"),"") -> -0.001725586319 | Q10: =IFERROR(_xll.ECONOMATICA("MERVAL","RETURN",Q7,$AC$2,,,,"decimal"),"") -> -0.1467339476 | S10: =IFERROR(_xll.ECONOMATICA("MERVAL","RETURN",S7,$AC$2,,,,"decimal"),"") -> 0.2444730747 | U10: =IFERROR(_xll.ECONOMATICA("MERVAL","RETURN",U7,$AC$2,,,,"decimal"),"") -> 0.9358658862 | W10: =IFERROR(_xll.ECONOMATICA("MERVAL","RETURN",W7,$AC$2,,,,"decimal"),"") -> 0.5531529483 | Y10: =IFERROR(_xll.ECONOMATICA("MERVAL","RETURN",Y7,$AC$2,,,,"decimal"),"") -> 0.8906305455 | AA10: =IFERROR(_xll.ECONOMATICA("MERVAL","RETURN",AA7,$AC$2,,,,"decimal"),"") -> 1.806027941 | AC10: =IFERROR(_xll.ECONOMATICA("MERVAL","RETURN",AC7,$AC$2,,,,"decimal"),"") -> 3.07627909
B11: Retorno | E11: =IFERROR(_xll.ECONOMATICA($B$4,"return","in the year",E$7,,,,"decimal"),"") -> -0.2103359776 | G11: =IFERROR(_xll.ECONOMATICA($B$4,"return","in the year",G$7,,,,"decimal"),"") -> 0.7200959017 | I11: =IFERROR(_xll.ECONOMATICA($B$4,"return","in the year",I$7,,,,"decimal"),"") -> 0.1913681332 | L11: Diferencia MERV (p.p) | O11: =IFERROR(O8-O10,"") -> -0.02051910529 | Q11: =IFERROR(Q8-Q10,"") -> -0.02312133813 | S11: =IFERROR(S8-S10,"") -> -0.2283355681 | U11: =IFERROR(U8-U10,"") -> -0.5900064568 | W11: =IFERROR(W8-W10,"") -> -0.3182128022 | Y11: =IFERROR(Y8-Y10,"") -> 0.08423616588 | AA11: =IFERROR(AA8-AA10,"") -> -0.1673903508 | AC11: =IFERROR(AC8-AC10,"") -> -1.789253096
B12: Volume Promedio | E12: =IFERROR(_xll.ECONOMATICA($B$4,"Hist Average","in the year",E7,,,,$I$6,,,,{"std.tec.cals=7"}),"") -> 135899.0742 | G12: =IFERROR(_xll.ECONOMATICA($B$4,"Hist Average","in the year",G7,,,,$I$6,,,,{"std.tec.cals=7"}),"") -> 77906.34265 | I12: =IFERROR(_xll.ECONOMATICA($B$4,"Hist Average","in the year",I7,,,,$I$6,,,,{"std.tec.cals=7"}),"") -> 54051.09541 | L12: Volatilidad | O12: - | Q12: =IFERROR(_xll.ECONOMATICA($B$4,"volatility",Q7,$AC$2,,,,"decimal"),"") -> 0.4061558576 | S12: =IFERROR(_xll.ECONOMATICA($B$4,"volatility",S7,$AC$2,,,,"decimal"),"") -> 0.9969848074 | U12: =IFERROR(_xll.ECONOMATICA($B$4,"volatility",U7,$AC$2,,,,"decimal"),"") -> 0.7773203257 | W12: =IFERROR(_xll.ECONOMATICA($B$4,"volatility",W7,$AC$2,,,,"decimal"),"") -> 0.6485118804 | Y12: =IFERROR(_xll.ECONOMATICA($B$4,"volatility",Y7,$AC$2,,,,"decimal"),"") -> 0.5757260028 | AA12: =IFERROR(_xll.ECONOMATICA($B$4,"volatility",AA7,$AC$2,,,,"decimal"),"") -> 0.5260529067 | AC12: =IFERROR(_xll.ECONOMATICA($B$4,"volatility",AC7,$AC$2,,,,"decimal"),"") -> 0.5120521187
L13: Sharpe | O13: - | Q13: =IFERROR(_xll.ECONOMATICA($B$4,"sharpe",Q7,$AC$2),"") -> -2.134769931 | S13: =IFERROR(_xll.ECONOMATICA($B$4,"sharpe",S7,$AC$2),"") -> 0.4804998276 | U13: =IFERROR(_xll.ECONOMATICA($B$4,"sharpe",U7,$AC$2),"") -> 0.7209937021 | W13: =IFERROR(_xll.ECONOMATICA($B$4,"sharpe",W7,$AC$2),"") -> 0.1134424437 | Y13: =IFERROR(_xll.ECONOMATICA($B$4,"sharpe",Y7,$AC$2),"") -> 0.3373796067 | AA13: =IFERROR(_xll.ECONOMATICA($B$4,"sharpe",AA7,$AC$2),"") -> 0.3903563546 | AC13: =IFERROR(_xll.ECONOMATICA($B$4,"sharpe",AC7,$AC$2),"") -> 0.2113611537
B14: Market Cap | E14: =IFERROR(_xll.ECONOMATICA($B$4,"MarketCapitaliz",,E$7,,,,$I$6),"") -> 266233429.6 | G14: =IFERROR(_xll.ECONOMATICA($B$4,"MarketCapitaliz",,G$7,,,,$I$6),"") -> 337147726.2 | I14: =IFERROR(_xll.ECONOMATICA($B$4,"MarketCapitaliz",,I$7,,,,$I$6),"") -> 197502019
B15: Market Cap - Free Float | E15: =IFERROR(E14*E57,"") ->  | G15: =IFERROR(G14*G57,"") ->  | I15: =IFERROR(I14*I57,"") ->  | L15: GRÁFICO BASE 100 | AB15: Años: | AC15: 12M
B16: EV | E16: =IFERROR(_xll.ECONOMATICA($B$4,"EV",,E$7,,,,$I$6),"") -> 866540429.6 | G16: =IFERROR(_xll.ECONOMATICA($B$4,"EV",,G$7,,,,$I$6),"") -> 865137726.2 | I16: =IFERROR(_xll.ECONOMATICA($B$4,"EV",,I$7,,,,$I$6),"") -> 489709019
B17: P/VL | E17: =IFERROR(_xll.ECONOMATICA($B$4,"P/BV",,E$7),"") -> 0.4731381713 | G17: =IFERROR(_xll.ECONOMATICA($B$4,"P/BV",,G$7),"") -> 0.6214143352 | I17: =IFERROR(_xll.ECONOMATICA($B$4,"P/BV",,I$7),"") -> 0.549838583
B18: Dividend Yield | E18: =IFERROR(_xll.ECONOMATICA($B$4,"Div Yld (start)","12M",E$7,,,,"decimal"),"") -> 0 | G18: =IFERROR(_xll.ECONOMATICA($B$4,"Div Yld (start)","12M",G$7,,,,"decimal"),"") -> 0.01164552425 | I18: =IFERROR(_xll.ECONOMATICA($B$4,"Div Yld (start)","12M",I$7,,,,"decimal"),"") -> 0.000723414345
B19: Dividendos por acción | E19: =IFERROR(_xll.ECONOMATICA($B$4,"Divid per Share","12M",E$7),"") -> 0 | G19: =IFERROR(_xll.ECONOMATICA($B$4,"Divid per Share","12M",G$7),"") -> 5.8478 | I19: =IFERROR(_xll.ECONOMATICA($B$4,"Divid per Share","12M",I$7),"") -> 0.3051
B21: Beta | E21: =IFERROR(_xll.ECONOMATICA($B$4,"beta","in the year",E$7,,,,,,,,{"jtc.per=0"}),"") -> 1.301025311 | G21: =IFERROR(_xll.ECONOMATICA($B$4,"beta","in the year",G$7,,,,,,,,{"jtc.per=0"}),"") -> 0.6130625594 | I21: =IFERROR(_xll.ECONOMATICA($B$4,"beta","in the year",I$7,,,,,,,,{"jtc.per=0"}),"") -> 0.7914712951
B22: Correlación | E22: =IFERROR(_xll.ECONOMATICA($B$4,"Correlation","in the year",E$7,,,,,,,,{"jtc.per=0"}),"") -> 0.8703485359 | G22: =IFERROR(_xll.ECONOMATICA($B$4,"Correlation","in the year",G$7,,,,,,,,{"jtc.per=0"}),"") -> 0.7957458132 | I22: =IFERROR(_xll.ECONOMATICA($B$4,"Correlation","in the year",I$7,,,,,,,,{"jtc.per=0"}),"") -> 0.7003959652
B24: Drawdown | E24: =IFERROR(_xll.ECONOMATICA($B$4,"MaxDrawdown","in the year",E$7,,,,"decimal"),"") -> 0 | G24: =IFERROR(_xll.ECONOMATICA($B$4,"MaxDrawdown","in the year",G$7,,,,"decimal"),"") -> -0.3560471852 | I24: =IFERROR(_xll.ECONOMATICA($B$4,"MaxDrawdown","in the year",I$7,,,,"decimal"),"") -> -0.2756193965
B25: Pérdida Máxima | E25: =IFERROR(_xll.ECONOMATICA($B$4,"MaxLoss","in the year",E$7,,,,"decimal"),"") -> -0.7263011152 | G25: =IFERROR(_xll.ECONOMATICA($B$4,"MaxLoss","in the year",G$7,,,,"decimal"),"") -> -0.3560471852 | I25: =IFERROR(_xll.ECONOMATICA($B$4,"MaxLoss","in the year",I$7,,,,"decimal"),"") -> -0.277159891
B27: HIGHLIGHTS FINANCIEROS | I27: Thousands
E28: =IFERROR(_xll.ECONOMATICA($B$4,"Fin Statm Date"),"") -> 2020-06-30 | G28: =IFERROR(DATE(YEAR($E$28)-1,12,31),"") -> 2019-12-31 | I28: =IFERROR(DATE(YEAR($E$28)-2,12,31),"") -> 2018-12-31
B29: Activo | E29: =IFERROR(_xll.ECONOMATICA($B$4,"Total Assets",,E$28,,,,$I$27),"") -> 1677091000 | G29: =IFERROR(_xll.ECONOMATICA($B$4,"Total Assets",,G$28,,,,$I$27),"") -> 1573289000 | I29: =IFERROR(_xll.ECONOMATICA($B$4,"Total Assets",,I$28,,,,$I$27),"") -> 994016000
B30: Patrimonio Neto | E30: =IFERROR(_xll.ECONOMATICA($B$4,"Stock Eq Par",,E$28,,,,$I$27),"") -> 562697000 | G30: =IFERROR(_xll.ECONOMATICA($B$4,"Stock Eq Par",,G$28,,,,$I$27),"") -> 542549000 | I30: =IFERROR(_xll.ECONOMATICA($B$4,"Stock Eq Par",,I$28,,,,$I$27),"") -> 359200000
B31: Capital de Trabajo | E31: =IFERROR(_xll.ECONOMATICA($B$4,"WorkCap",,E$28,,,,$I$27),"") -> -48910000 | G31: =IFERROR(_xll.ECONOMATICA($B$4,"WorkCap",,G$28,,,,$I$27),"") -> -5451000 | I31: =IFERROR(_xll.ECONOMATICA($B$4,"WorkCap",,I$28,,,,$I$27),"") -> 29446000
B32: Deuda Bruta | E32: =IFERROR(_xll.ECONOMATICA($B$4,"TtDebtGr",,E$28,,,,$I$27),"") -> 677836000 | G32: =IFERROR(_xll.ECONOMATICA($B$4,"TtDebtGr",,G$28,,,,$I$27),"") -> 588540000 | I32: =IFERROR(_xll.ECONOMATICA($B$4,"TtDebtGr",,I$28,,,,$I$27),"") -> 335078000
B33: Deuda Neta | E33: =IFERROR(_xll.ECONOMATICA($B$4,"TtNetDebt",,E$28,,,,$I$27),"") -> 594295000 | G33: =IFERROR(_xll.ECONOMATICA($B$4,"TtNetDebt",,G$28,,,,$I$27),"") -> 522440000 | I33: =IFERROR(_xll.ECONOMATICA($B$4,"TtNetDebt",,I$28,,,,$I$27),"") -> 289050000
B34: Deuda Financiera CP | E34: =IFERROR(_xll.ECONOMATICA($B$4,"ST Debt",,E$28,,,,$I$27),"") -> 104713000 | G34: =IFERROR(_xll.ECONOMATICA($B$4,"st Debt",,G$28,,,,$I$27),"") -> 87738000 | I34: =IFERROR(_xll.ECONOMATICA($B$4,"st Debt",,I$28,,,,$I$27),"") -> 40410000
B35: D/(D+E) | E35: =IFERROR(_xll.ECONOMATICA($B$4,"Cap Str(Mkt Cap)",,E$28,,,,"decimal"),"") -> 0.7410881454 | G35: =IFERROR(_xll.ECONOMATICA($B$4,"Cap Str(Mkt Cap)",,G$28,,,,"decimal"),"") -> 0.6357867598 | I35: =IFERROR(_xll.ECONOMATICA($B$4,"Cap Str(Mkt Cap)",,I$28,,,,"decimal"),"") -> 0.629159916
B37: Ventas (12 meses) | E37: =IFERROR(_xll.ECONOMATICA($B$4,"Revenues","12M",E$28,,,,$I$27),"") -> 663302013.4 | G37: =IFERROR(_xll.ECONOMATICA($B$4,"Revenues","12M",G$28,,,,$I$27),"") -> 678595000 | I37: =IFERROR(_xll.ECONOMATICA($B$4,"Revenues","12M",I$28,,,,$I$27),"") -> 435820000 | L37: =IFERROR("COMPARATIVO SECTORIAL (Sector Economatica): "&_xll.ECONOMATICA(Factsheet!B4,"Subsector Bovespa"),"") -> COMPARATIVO SECTORIAL (Sector Economatica): -
B38: Ganancia Bruta | E38: =IFERROR(_xll.ECONOMATICA($B$4,"Gross Profit","12M",E$28,,,,$I$27),"") -> 57856971.36 | G38: =IFERROR(_xll.ECONOMATICA($B$4,"Gross Profit","12M",G$28,,,,$I$27),"") -> 102987000 | I38: =IFERROR(_xll.ECONOMATICA($B$4,"Gross Profit","12M",I$28,,,,$I$27),"") -> 76250000
B39: Margen Bruto | E39: =IFERROR(_xll.ECONOMATICA($B$4,"GrossMargin","12M",E$28,,,,"decimal"),"") -> 0.08722568331 | G39: =IFERROR(_xll.ECONOMATICA($B$4,"GrossMargin","12M",G$28,,,,"decimal"),"") -> 0.151765044 | I39: =IFERROR(_xll.ECONOMATICA($B$4,"GrossMargin","12M",I$28,,,,"decimal"),"") -> 0.1749575513
B40: EBIT | E40: =IFERROR(_xll.ECONOMATICA($B$4,"EBIT","12M",E$28,,,,$I$27),"") -> -127923867.3 | G40: =IFERROR(_xll.ECONOMATICA($B$4,"EBIT","12M",G$28,,,,$I$27),"") -> -21012000 | I40: =IFERROR(_xll.ECONOMATICA($B$4,"EBIT","12M",I$28,,,,$I$27),"") -> 43780000 | S40: EMPRESA | W40: SECTOR
B41: Margen EBIT | E41: =IFERROR(_xll.ECONOMATICA($B$4,"EBITMargin","12M",E$28,,,,"decimal"),"") -> -0.1928591572 | G41: =IFERROR(_xll.ECONOMATICA($B$4,"EBITMargin","12M",G$28,,,,"decimal"),"") -> -0.03096397704 | I41: =IFERROR(_xll.ECONOMATICA($B$4,"EBITMargin","12M",I$28,,,,"decimal"),"") -> 0.100454316 | S41: Actual | U41: Media | W41: Media Actual | Y41: Media Gral
B42: EBITDA | E42: =IFERROR(_xll.ECONOMATICA($B$4,"EBITDA","12M",E$28,,,,$I$27),"") -> 157731927.3 | G42: =IFERROR(_xll.ECONOMATICA($B$4,"EBITDA","12M",G$28,,,,$I$27),"") -> 179194000 | I42: =IFERROR(_xll.ECONOMATICA($B$4,"EBITDA","12M",I$28,,,,$I$27),"") -> 130198000 | P42: Precio / Utilidad* | S42: =IFERROR(INDEX(Múltiplos!L:L,MATCH('Base Factsheet'!$B$5,Múltiplos!$B:$B,0)),"") -> -2.620305993 | U42: =IFERROR(INDEX(Múltiplos!N:N,MATCH('Base Factsheet'!$B$5,Múltiplos!$B:$B,0)),"") -> 9.278673403 | W42: =AVERAGEIFS(Múltiplos!$L:$L,Múltiplos!$L:$L,">0",Múltiplos!$L:$L,"<50") -> 5.822267556 | Y42: =AVERAGE(Múltiplos!N:N) -> 12.30889306
B43: Margen EBITDA | E43: =IFERROR(_xll.ECONOMATICA($B$4,"EbitdaMargin","12M",E$28,,,,"decimal"),"") -> 0.2377980529 | G43: =IFERROR(_xll.ECONOMATICA($B$4,"EbitdaMargin","12M",G$28,,,,"decimal"),"") -> 0.2640661956 | I43: =IFERROR(_xll.ECONOMATICA($B$4,"EbitdaMargin","12M",I$28,,,,"decimal"),"") -> 0.2987426002
B44: Ganancia Neta | E44: =IFERROR(_xll.ECONOMATICA($B$4,"Net Income","12M",E$28,,,,$I$27),"") -> -101603946.4 | G44: =IFERROR(_xll.ECONOMATICA($B$4,"Net Income","12M",G$28,,,,$I$27),"") -> -34071000 | I44: =IFERROR(_xll.ECONOMATICA($B$4,"Net Income","12M",I$28,,,,$I$27),"") -> 38613000 | P44: EV / EBITDA* | S44: =IFERROR(INDEX(Múltiplos!$T:$T,MATCH('Base Factsheet'!$B$5,Múltiplos!$B:$B,0)),"") -> 5.493754148 | U44: =IFERROR(INDEX(Múltiplos!$V:$V,MATCH('Base Factsheet'!$B$5,Múltiplos!$B:$B,0)),"") -> 6.133368913 | W44: =AVERAGEIFS(Múltiplos!$T:$T,Múltiplos!$T:$T,">0",Múltiplos!$T:$T,"<50") -> 3.529130407 | Y44: =AVERAGE(Múltiplos!V:V) -> 8.852586016
B45: Margen Neto | E45: =IFERROR(_xll.ECONOMATICA($B$4,"Net Margin","12M",E$28,,,,"decimal"),"") -> -0.1532517764 | G45: =IFERROR(_xll.ECONOMATICA($B$4,"Net Margin","12M",G$28,,,,"decimal"),"") -> -0.04918839661 | I45: =IFERROR(_xll.ECONOMATICA($B$4,"Net Margin","12M",I$28,,,,"decimal"),"") -> 0.08858244229
B46: EPS | E46: =IFERROR(_xll.ECONOMATICA($B$4,"EPS","12M",E$28),"") -> -258.3286082 | G46: =IFERROR(_xll.ECONOMATICA($B$4,"EPS","12M",G$28),"") -> -86.62571014 | I46: =IFERROR(_xll.ECONOMATICA($B$4,"EPS","12M",I$28),"") -> 98.17377082 | P46: Precio / Valor Libro** | S46: =IFERROR(INDEX(Múltiplos!AJ:AJ,MATCH('Base Factsheet'!$B$5,Múltiplos!$B:$B,0)),"") -> 0.4731381713 | U46: =IFERROR(INDEX(Múltiplos!AM:AM,MATCH('Base Factsheet'!$B$5,Múltiplos!$B:$B,0)),"") -> 0.7182781176 | W46: =AVERAGE(Múltiplos!AJ6:AJ1048576) -> 0.6818882698 | Y46: =AVERAGE(Múltiplos!AM:AM) -> 3.344535203
B48: ROE | E48: =IFERROR(_xll.ECONOMATICA($B$4,"ROE (avg)","12M",E$28,,,,"decimal"),"") -> -0.2097803429 | G48: =IFERROR(_xll.ECONOMATICA($B$4,"ROE (avg)","12M",G$28,,,,"decimal"),"") -> -0.07332369714 | I48: =IFERROR(_xll.ECONOMATICA($B$4,"ROE (avg)","12M",I$28,,,,"decimal"),"") -> 0.1499582435 | P48: Precio / Ventas* | S48: =IFERROR(INDEX(Múltiplos!AS:AS,MATCH('Base Factsheet'!$B$5,Múltiplos!$B:$B,0)),"") -> 0.4013758803 | U48: =IFERROR(INDEX(Múltiplos!AU:AU,MATCH('Base Factsheet'!$B$5,Múltiplos!$B:$B,0)),"") -> 0.4984744021 | W48: =AVERAGE(Múltiplos!AS6:AS1048576) -> 0.6687043071 | Y48: =AVERAGE(Múltiplos!AU:AU) -> 1.882956822
B49: ROIC | E49: =IFERROR(_xll.ECONOMATICA($B$4,"ROIC (avg IC) %","12M",E$28,,,,"decimal"),"") -> -0.0690641256 | G49: =IFERROR(_xll.ECONOMATICA($B$4,"ROIC (avg IC) %","12M",G$28,,,,"decimal"),"") -> -0.01267745259 | I49: =IFERROR(_xll.ECONOMATICA($B$4,"ROIC (avg IC) %","12M",I$28,,,,"decimal"),"") -> 0.04562511474
B50: ROA | E50: =IFERROR(_xll.ECONOMATICA($B$4,"ROA","12M",E$28,,,,"decimal"),"") -> -0.0606122219 | G50: =IFERROR(_xll.ECONOMATICA($B$4,"ROA","12M",G$28,,,,"decimal"),"") -> -0.02121606393 | I50: =IFERROR(_xll.ECONOMATICA($B$4,"ROA","12M",I$28,,,,"decimal"),"") -> 0.03883840904 | P50: Deuda Neta / EBITDA* | S50: =IFERROR(INDEX(Múltiplos!BA:BA,MATCH('Base Factsheet'!$B$5,Múltiplos!$B:$B,0)),"") -> 3.767753367 | U50: =IFERROR(INDEX(Múltiplos!BC:BC,MATCH('Base Factsheet'!$B$5,Múltiplos!$B:$B,0)),"") -> 3.63027739 | W50: =AVERAGE(Múltiplos!BA6:BA1048576) -> 0.5833104512 | Y50: =AVERAGE(Múltiplos!BC:BC) -> 1.88941055
B52: Total Acciones | E52: =IFERROR(_xll.ECONOMATICA($B$4,"Num of Shares",,E$28,,,,$I$27,,,,{"std.bac.totex=0"}),"") -> 393312.793 | G52: =IFERROR(_xll.ECONOMATICA($B$4,"Num of Shares",,G$28,,,,$I$27,,,,{"std.bac.totex=0"}),"") -> 393312.793 | I52: =IFERROR(_xll.ECONOMATICA($B$4,"Num of Shares",,I$28,,,,$I$27,,,,{"std.bac.totex=0"}),"") -> 393312.793 | P52: Dividend Yield | S52: =IFERROR(INDEX(Dividendos!$N:$N,MATCH('Base Factsheet'!$B$5,Dividendos!$B:$B,0)),"") ->  | U52: =IFERROR(INDEX(Dividendos!$P:$P,MATCH('Base Factsheet'!$B$5,Dividendos!$B:$B,0)),"") ->  | W52: =AVERAGE(Dividendos!N7:N1048576) -> 0.006319537161 | Y52: =AVERAGE(Dividendos!P:P) -> 0.03726575002
B53: Outstanding | E53: =IFERROR(_xll.ECONOMATICA($B$4,"Num of Shares",,E$28,,,,$I$27,,,,),"") -> 393312.793 | G53: =IFERROR(_xll.ECONOMATICA($B$4,"Num of Shares",,G$28,,,,$I$27,,,,),"") -> 393312.793 | I53: =IFERROR(_xll.ECONOMATICA($B$4,"Num of Shares",,I$28,,,,$I$27,,,,),"") -> 393312.793
B54: En Cartera | E54: =IFERROR(_xll.ECONOMATICA($B$4,"Num of Shares",,E$28,,,,$I$27,,,,{"std.bac.totex=1"}),"") -> 0 | G54: =IFERROR(_xll.ECONOMATICA($B$4,"Num of Shares",,G$28,,,,$I$27,,,,{"std.bac.totex=1"}),"") -> 0 | I54: =IFERROR(_xll.ECONOMATICA($B$4,"Num of Shares",,I$28,,,,$I$27,,,,{"std.bac.totex=1"}),"") -> 0 | P54: D/(D+E) | S54: =IFERROR(INDEX(Múltiplos!AB:AB,MATCH('Base Factsheet'!$B$5,Múltiplos!$B:$B,0)),"") -> 0.717993803 | U54: =IFERROR(INDEX(Múltiplos!AD:AD,MATCH('Base Factsheet'!$B$5,Múltiplos!$B:$B,0)),"") -> 0.624125163 | W54: =AVERAGE(Múltiplos!AB6:AB1048576) -> 0.3264146668 | Y54: =AVERAGE(Múltiplos!AD:AD) -> 0.2004729769
B55: % en Cartera | E55: =IF(E54="0","-x-",IFERROR((E54/E52),"")) -> 0 | G55: =IF(G54="0","-x-",IFERROR((G54/G52),"")) -> 0 | I55: =IF(I54="0","-x-",IFERROR((I54/I52),"")) -> 0
B56: Free Float | E56: =IFERROR(_xll.ECONOMATICA($B$4,"ShrsHold",,E$28,,,,$I$27,,,,{"std.cac.naop=true";"std.cac.ccacq=7";"std.cac.nm=0";"std.cac.npers=1";"std.cac.tol=4";"std.cac.fam=1"}),"") ->  | G56: =IFERROR(_xll.ECONOMATICA($B$4,"ShrsHold",,G$28,,,,$I$27,,,,{"std.cac.naop=true";"std.cac.ccacq=7";"std.cac.nm=0";"std.cac.npers=1";"std.cac.tol=4";"std.cac.fam=1"}),"") ->  | I56: =IFERROR(_xll.ECONOMATICA($B$4,"ShrsHold",,I$28,,,,$I$27,,,,{"std.cac.naop=true";"std.cac.ccacq=7";"std.cac.nm=0";"std.cac.npers=1";"std.cac.tol=4";"std.cac.fam=1"}),"") -> 
B57: % Free Float | E57: =IF(E56="0","-x-",IFERROR((E56/E52),"")) ->  | G57: =IF(G56="0","-x-",IFERROR((G56/G52),"")) ->  | I57: =IF(I56="0","-x-",IFERROR((I56/I52),"")) ->  | P57: 1 Media 5 años |* Media 5 años (valores >0 e <50) |** Média 5 años (valores >0 e <30)

Sheet Múltiplos
B2: Data: | C2: =Factsheet!AC2 -> 2020-09-03 | D2: ← No Modificar | H2: PREÇO / LUCRO | P2: EV / EBITDA | X2: D/(D+E) | AF2: PREÇO / VALOR PATRIMONIAL | AO2: PREÇO / VENDAS | AW2: DÍVIDA LÍQUIDA / EBITDA
H4: =EOMONTH(I4,-12) -> 2016-12-31 | I4: =EOMONTH(J4,-12) -> 2017-12-31 | J4: =EOMONTH(K4,-12) -> 2018-12-31 | K4: =DATE(YEAR($C$2)-1,12,31) -> 2019-12-31 | L4: =$C$2 -> 2020-09-03 | P4: =EOMONTH(Q4,-12) -> 2016-12-31 | Q4: =EOMONTH(R4,-12) -> 2017-12-31 | R4: =EOMONTH(S4,-12) -> 2018-12-31 | S4: =DATE(YEAR($C$2)-1,12,31) -> 2019-12-31 | T4: =$C$2 -> 2020-09-03 | X4: =EOMONTH(Y4,-12) -> 2016-12-31 | Y4: =EOMONTH(Z4,-12) -> 2017-12-31 | Z4: =EOMONTH(AA4,-12) -> 2018-12-31 | AA4: =DATE(YEAR($C$2)-1,12,31) -> 2019-12-31 | AB4: =TEXT($C$2,"AAAA") -> jueves | AF4: =EOMONTH(AG4,-12) -> 2016-12-31 | AG4: =EOMONTH(AH4,-12) -> 2017-12-31 | AH4: =EOMONTH(AI4,-12) -> 2018-12-31 | AI4: =DATE(YEAR($C$2)-1,12,31) -> 2019-12-31 | AJ4: =$C$2 -> 2020-09-03 | AO4: =EOMONTH(AP4,-12) -> 2016-12-31 | AP4: =EOMONTH(AQ4,-12) -> 2017-12-31 | AQ4: =EOMONTH(AR4,-12) -> 2018-12-31 | AR4: =DATE(YEAR($C$2)-1,12,31) -> 2019-12-31 | AS4: =$C$2 -> 2020-09-03 | AW4: =EOMONTH(AX4,-12) -> 2016-12-31 | AX4: =EOMONTH(AY4,-12) -> 2017-12-31 | AY4: =EOMONTH(AZ4,-12) -> 2018-12-31 | AZ4: =DATE(YEAR($C$2)-1,12,31) -> 2019-12-31 | BA4: LATEST
B5: =_xll.ECOSECURITIES("stock","active","true","ARG","XBUE",,,"Sector Economatica="&SUBSTITUTE(_xll.ECONOMATICA(Factsheet!B4,"sector economatica"),",","\,")) -> Codigo | C5: =_xll.ECONOMATICA($B$6:$B$200,"name") -> Nombre | D5: =_xll.ECONOMATICA($B$6:$B$200,"sector Economatica",,,,,,,,,"Sector Economatica") -> Sector Economatica | E5: =_xll.ECONOMATICA($B$6:$B$200,"Sector NAICS",,,,,,,,,"Sector NAICS") -> Sector NAICS | F5: =_xll.ECONOMATICA(B6:B200,"MarketCapitaliz",,$C$2,,,,"millions",,,"Mkt Cap (Millones)") -> Mkt Cap (Millones) | H5: =_xll.ECONOMATICA($B$6:$B$200,"P/E","12m",H4,,,,,,,"P/L") -> P/L | I5: =_xll.ECONOMATICA($B$6:$B$200,"P/E","12m",I4,,,,,,,"P/L") -> P/L | J5: =_xll.ECONOMATICA($B$6:$B$200,"P/E","12m",J4,,,,,,,"P/L") -> P/L | K5: =_xll.ECONOMATICA($B$6:$B$200,"P/E","12m",K4,,,,,,,"P/L") -> P/L | L5: =_xll.ECONOMATICA($B$6:$B$200,"P/E","12m",L4,,,,,,,"P/L") -> P/L | M5: Mediana 5 anos | N5: Média 5 anos (valores >0 e <50) | P5: =_xll.ECONOMATICA($B$6:$B$200,"EV/EBITDA co","12m",P4,,,,,,,"EV/EBITDA") -> EV/EBITDA | Q5: =_xll.ECONOMATICA($B$6:$B$200,"EV/EBITDA co","12m",Q4,,,,,,,"EV/EBITDA") -> EV/EBITDA | R5: =_xll.ECONOMATICA($B$6:$B$200,"EV/EBITDA co","12m",R4,,,,,,,"EV/EBITDA") -> EV/EBITDA | S5: =_xll.ECONOMATICA($B$6:$B$200,"EV/EBITDA co","12m",S4,,,,,,,"EV/EBITDA") -> EV/EBITDA | T5: =_xll.ECONOMATICA($B$6:$B$200,"EV/EBITDA co","12m",T4,,,,,,,"EV/EBITDA") -> EV/EBITDA | U5: Mediana 5 anos | V5: Média 5 anos (valores >0 e <50) | X5: =_xll.ECONOMATICA($B$6:$B$200,"Cap Str(Mkt Cap)",,X4,,,,"decimal",,,"D/D+E") -> D/D+E | Y5: =_xll.ECONOMATICA($B$6:$B$200,"Cap Str(Mkt Cap)",,Y4,,,,"decimal",,,"D/D+E") -> D/D+E | Z5: =_xll.ECONOMATICA($B$6:$B$200,"Cap Str(Mkt Cap)",,Z4,,,,"decimal",,,"D/D+E") -> D/D+E | AA5: =_xll.ECONOMATICA($B$6:$B$200,"Cap Str(Mkt Cap)",,AA4,,,,"decimal",,,"D/D+E") -> D/D+E | AB5: =_xll.ECONOMATICA($B$6:$B$200,"Cap Str(Mkt Cap)",,$C$2,,,,"decimal",,,"D/D+E") -> D/D+E | AC5: Mediana 5 anos | AD5: Média 5 anos | AF5: =_xll.ECONOMATICA($B$6:$B$200,"P/BV",,AF4,,,,,,,"P/VPA") -> P/VPA | AG5: =_xll.ECONOMATICA($B$6:$B$200,"P/BV",,AG4,,,,,,,"P/VPA") -> P/VPA | AH5: =_xll.ECONOMATICA($B$6:$B$200,"P/BV",,AH4,,,,,,,"P/VPA") -> P/VPA | AI5: =_xll.ECONOMATICA($B$6:$B$200,"P/BV",,AI4,,,,,,,"P/VPA") -> P/VPA | AJ5: =_xll.ECONOMATICA($B$6:$B$200,"P/BV",,AJ4,,,,,,,"P/VPA") -> P/VPA | AK5: Máximo 5 anos | AL5: P/VPA atual vs Máximo 5 anos | AM5: Média 5 anos (valores >0 e <30) | AO5: =_xll.ECONOMATICA($B$6:$B$200,"PSR","12m",AO4,,,,,,,"P/Vendas") -> P/Vendas | AP5: =_xll.ECONOMATICA($B$6:$B$200,"PSR","12m",AP4,,,,,,,"P/Vendas") -> P/Vendas | AQ5: =_xll.ECONOMATICA($B$6:$B$200,"PSR","12m",AQ4,,,,,,,"P/Vendas") -> P/Vendas | AR5: =_xll.ECONOMATICA($B$6:$B$200,"PSR","12m",AR4,,,,,,,"P/Vendas") -> P/Vendas | AS5: =_xll.ECONOMATICA($B$6:$B$200,"PSR","12m",AS4,,,,,,,"P/Vendas") -> P/Vendas | AT5: Mediana 5 anos | AU5: Média 5 anos (valores >0 e <50) | AW5: =_xll.ECONOMATICA($B$6:$B$200,"NetDebt/Ebitda","12m",AW4,,,,,,,"DL/EBITDA") -> DL/EBITDA | AX5: =_xll.ECONOMATICA($B$6:$B$200,"NetDebt/Ebitda","12m",AX4,,,,,,,"DL/EBITDA") -> DL/EBITDA | AY5: =_xll.ECONOMATICA($B$6:$B$200,"NetDebt/Ebitda","12m",AY4,,,,,,,"DL/EBITDA") -> DL/EBITDA | AZ5: =_xll.ECONOMATICA($B$6:$B$200,"NetDebt/Ebitda","12m",AZ4,,,,,,,"DL/EBITDA") -> DL/EBITDA | BA5: =_xll.ECONOMATICA($B$6:$B$200,"NetDebt/Ebitda","12m",BA4,,,,,,,"DL/EBITDA") -> DL/EBITDA | BB5: Mediana 5 anos | BC5: Média 5 anos (valores >0 e <50)
B6: CGPA2<XBUE> | C6: Camuzzi Gas Pamp. | D6: Petróleo y Gas | E6: Suministro de gas por ductos al consumidor final | F6: 6532.30856 | H6: -20.30173638 | I6: 28.64348912 | J6: 3.589074805 | K6: 2.435330616 | M6: =IFERROR(MEDIAN(H6:L6),"-x-") -> 3.012202711 | N6: =IFERROR(AVERAGEIFS(H6:L6,H6:L6,">0",H6:L6,"<50"),"-x-") -> 11.55596485 | P6: -16.00889147 | Q6: 18.41716088 | R6: 1.641586532 | S6: 1.127422031 | U6: =IFERROR(MEDIAN(P6:T6),"-x-") -> 1.384504281 | V6: =IFERROR(AVERAGEIFS(P6:T6,P6:T6,">0",P6:T6,"<50"),"-x-") -> 7.062056481 | X6: 0 | Y6: 0 | Z6: 0 | AA6: 0 | AC6: =IFERROR(MEDIAN(X6:AB6),"-x-") -> 0 | AD6: =IFERROR(AVERAGE(X6:AB6),"-x-") -> 0 | AF6: 7.281638921 | AG6: 17.78767474 | AH6: 1.823919257 | AI6: 1.330625361 | AK6: =IF(MAX(AF6:AJ6)=0,"-x-",MAX(AF6:AJ6)) -> 17.78767474 | AL6: =IFERROR(AJ6/AK6,"-x-") -> 0 | AM6: =IFERROR(AVERAGEIFS(AF6:AJ6,AF6:AJ6,">0",AF6:AJ6,"<30"),"-x-") -> 7.055964569 | AO6: 1.317545832 | AP6: 3.93217473 | AQ6: 0.5285322527 | AR6: 0.3633078295 | AT6: =IFERROR(MEDIAN(AO6:AS6),"-x-") -> 0.9230390425 | AU6: =IFERROR(AVERAGEIFS(AO6:AS6,AO6:AS6,">0",AO6:AS6,"<50"),"-x-") -> 1.535390161 | AX6: -1.261615101 | AY6: -0.06610947769 | BB6: =IFERROR(MEDIAN(AW6:BA6),"-x-") -> -0.6638622894 | BC6: =IFERROR(AVERAGEIFS(AW6:BA6,AW6:BA6,">0",AW6:BA6,"<50"),"-x-") -> -x-
B7: CARC<XBUE> | C7: Carboclor S.A. | D7: Petróleo y Gas | E7: Extracción de petróleo y gas | F7: 2445.238598 | H7: -1.036767799 | I7: -0.9822999005 | J7: 3.998915513 | K7: 2.563751336 | M7: 0.7907257176 | N7: =IFERROR(AVERAGEIFS(H7:L7,H7:L7,">0",H7:L7,"<50"),"-x-") -> 3.281333424 | P7: -9.89052998 | Q7: -31.54925838 | R7: 11.44305735 | S7: 12.78827312 | U7: 0.776263686 | V7: =IFERROR(AVERAGEIFS(P7:T7,P7:T7,">0",P7:T7,"<50"),"-x-") -> 12.11566524 | X7: 0.3855177 | Y7: 0.01555457679 | Z7: 0 | AA7: 0 | AC7: 0.007777288397 | AD7: 0.1002680692 | AF7: -4.315206749 | AG7: -2.469311483 | AH7: 5.338611749 | AI7: 1.602692129 | AK7: 5.338611749 | AL7: 0 | AM7: =IFERROR(AVERAGEIFS(AF7:AJ7,AF7:AJ7,">0",AF7:AJ7,"<30"),"-x-") -> 3.470651939 | AO7: 0.3273310134 | AP7: 6.46731385 | AQ7: 3.166499313 | AR7: 2.325822818 | AT7: 2.746161066 | AU7: =IFERROR(AVERAGEIFS(AO7:AS7,AO7:AS7,">0",AO7:AS7,"<50"),"-x-") -> 3.071741749 | AY7: -2.996327035 | AZ7: -2.056446857 | BA7: -2.59644167 | BB7: -2.59644167 | BC7: =IFERROR(AVERAGEIFS(AW7:BA7,AW7:BA7,">0",AW7:BA7,"<50"),"-x-") -> -x-
B8: DGCU2<XBUE> | C8: Distr Gas Cuyana | D8: Petróleo y Gas | E8: Suministro de gas por ductos al consumidor final | F8: 3935.732552 | H8: 23.84628593 | I8: 15.42170122 | J8: 6.459674498 | K8: 3.96698337 | L8: 5.419384791 | M8: 6.459674498 | N8: 11.02280596 | P8: 28.5342322 | Q8: 13.92627151 | R8: 3.431650956 | S8: 1.70206745 | T8: 1.889742225 | U8: 3.431650956 | V8: 9.896792867 | X8: 0 | Y8: 0 | Z8: 0 | AA8: 0 | AB8: 0 | AC8: 0 | AD8: 0 | AF8: 4.687328182 | AG8: 7.608122357 | AH8: 1.671799847 | AI8: 0.5921865022 | AJ8: 0.4203498338 | AK8: 7.608122357 | AL8: 0.05525014111 | AM8: 2.995957344 | AO8: 2.020685177 | AP8: 3.225673605 | AQ8: 0.9479073813 | AR8: 0.3722609881 | AS8: 0.2906363421 | AT8: 0.9479073813 | AU8: 1.371432699 | AW8: -0.1526738428 | AX8: -0.04465082913 | AY8: -0.0229361463 | AZ8: -0.08219222947 | BA8: -0.1145346913 | BB8: -0.08219222947 | BC8: -x-
B9: GBAN<XBUE> | C9: Gas Natural Ban | D9: Petróleo y Gas | E9: Suministro de gas por ductos al consumidor final | F9: 10580.04889 | H9: -35.77156429 | I9: 37.17201411 | J9: 5.284499251 | K9: 2.886202338 | L9: 5.401936963 | M9: 5.284499251 | N9: 12.68616317 | P9: -130.0093136 | Q9: 20.17753315 | R9: 3.202324781 | S9: 2.936800629 | T9: 3.709934917 | U9: 3.202324781 | V9: 7.50664837 | X9: 0 | Y9: 0.02139043532 | Z9: 0.05443512902 | AA9: 0.04916606373 | AB9: 0.1202784491 | AC9: 0.04916606373 | AD9: 0.04905401543 | AF9: 8.45395424 | AG9: 12.27490952 | AH9: 1.617462694 | AI9: 0.6708180958 | AJ9: 0.5881301101 | AK9: 12.27490952 | AL9: 0.0479131931 | AM9: 4.721054932 | AO9: 2.235241775 | AP9: 3.084048501 | AQ9: 0.615627611 | AR9: 0.3195523538 | AS9: 0.3127246373 | AT9: 0.615627611 | AU9: 1.313438976 | AX9: 0.3226443011 | AY9: -0.05045464814 | AZ9: -0.251470521 | BA9: -0.1781633391 | BB9: -0.1143089936 | BC9: 0.3226443011
B10: METR<XBUE> | C10: Metrogas | D10: Petróleo y Gas | E10: Suministro de gas por ductos al consumidor final | F10: 10330.45365 | H10: -13.31821971 | I10: 33.1387333 | J10: -2574.774923 | K10: 8.259643299 | L10: -6.104117588 | M10: -6.104117588 | N10: 20.6991883 | P10: 20.11279332 | Q10: 18.00342736 | R10: 4.787696839 | S10: 2.166037143 | T10: 3.467057714 | U10: 4.787696839 | V10: 9.707402475 | X10: 0.2900170172 | Y10: 0.1180921185 | Z10: 0.3851042749 | AA10: 0.5384920802 | AB10: 0.5463248588 | AC10: 0.3851042749 | AD10: 0.3756060699 | AF10: -5.154450639 | AG10: 2.850536531 | AH10: 1.132220575 | AI10: 0.4512586696 | AJ10: 0.6602845996 | AK10: 2.850536531 | AL10: 0.2316352 | AM10: 1.273575094 | AO10: 0.9935923035 | AP10: 2.102548331 | AQ10: 0.4609751418 | AR10: 0.1529894285 | AS10: 0.1779437698 | AT10: 0.4609751418 | AU10: 0.7776097948 | AW10: 5.300517788 | AX10: 1.851945071 | AY10: 1.609821207 | AZ10: 1.027756871 | BA10: 1.891051429 | BB10: 1.851945071 | BC10: 2.336218473
B11: TGNO4<XBUE> | C11: Transp Gas de Norte | D11: Petróleo y Gas | E11: Suministro de gas por ductos al consumidor final | F11: 17443.14538 | H11: -37.13436911 | I11: 39.03895108 | K11: 4.151018973 | L11: 3.337851801 | M11: 3.744435387 | N11: 15.50927395 | P11: 25.0382168 | Q11: 20.59878785 | R11: 4.047830389 | S11: 1.967278576 | T11: 1.683444035 | U11: 4.047830389 | V11: 10.66711153 | X11: 0.3628386405 | Y11: 0.1104016883 | Z11: 0.2522065807 | AA11: 0.2911871285 | AB11: 0.2901779188 | AC11: 0.2901779188 | AD11: 0.2613623914 | AF11: 107.7475352 | AG11: 2.185847106 | AH11: 0.8545029924 | AI11: 0.41139353 | AJ11: 0.3508429953 | AK11: 107.7475352 | AL11: 0.003256157969 | AM11: 0.950646656 | AO11: 5.237031285 | AP11: 8.480731489 | AQ11: 2.09462931 | AR11: 0.9927660438 | AS11: 0.9318180911 | AT11: 2.09462931 | AU11: 3.547395244 | AW11: 8.649645788 | AX11: 2.035213272 | AY11: 0.7913492091 | AZ11: 0.4429304285 | BA11: 0.2428822435 | BB11: 0.7913492091 | BC11: 2.432404188
B12: TGSU2<XBUE> | C12: Transp Gas Sur | D12: Petróleo y Gas | E12: Suministro de gas por ductos al consumidor final | F12: 93093.12148 | H12: 25.26882142 | I12: 23.62213413 | J12: 7.590390123 | K12: 6.577464783 | L12: 9.129896669 | M12: 9.129896669 | N12: 14.43774143 | P12: 10.27506756 | Q12: 13.36668743 | R12: 5.435469989 | S12: 4.650136889 | T12: 4.930849404 | U12: 5.435469989 | V12: 7.731642255 | X12: 0.1427787191 | Y12: 0.06383244983 | Z12: 0.1939054618 | AA12: 0.2826109306 | AB12: 0.2837129713 | AC12: 0.1939054618 | AD12: 0.1933681065 | AF12: 9.308640336 | AG12: 12.4036462 | AH12: 2.766982259 | AI12: 1.772912146 | AJ12: 1.598583909 | AK12: 12.4036462 | AL12: 0.1288801601 | AM12: 5.57015297 | AO12: 3.177048625 | AP12: 5.387820982 | AQ12: 2.543859563 | AR12: 1.734401482 | AS12: 1.897727122 | AT12: 2.543859563 | AU12: 2.948171555 | AW12: 0.9377801883 | AX12: 0.36382542 | AY12: 0.2398174118 | AZ12: 1.015493159 | BA12: 1.070625819 | BB12: 0.9377801883 | BC12: 0.7255083995
B13: YPFD<XBUE> | C13: Ypf S.A. | D13: Petróleo y Gas | E13: Extracción de petróleo y gas | F13: 266233.4296 | H13: -3.607607515 | I13: 13.44243683 | J13: 5.114909979 | K13: -9.895445574 | L13: -2.620305993 | M13: -2.620305993 | N13: 9.278673403 | P13: 11.56113713 | Q13: 5.022750385 | R13: 3.76126376 | S13: 4.827939139 | T13: 5.493754148 | U13: 5.022750385 | V13: 6.133368913 | X13: 0.6024089017 | Y13: 0.5352764346 | Z13: 0.629159916 | AA13: 0.6357867598 | AB13: 0.717993803 | AC13: 0.629159916 | AD13: 0.624125163 | AF13: 0.8577997843 | AG13: 1.089199714 | AH13: 0.549838583 | AI13: 0.6214143352 | AJ13: 0.4731381713 | AK13: 1.089199714 | AL13: 0.4343906496 | AM13: 0.7182781176 | AO13: 0.4848548947 | AP13: 0.6561358413 | AQ13: 0.453173372 | AR13: 0.4968320223 | AS13: 0.4013758803 | AT13: 0.4848548947 | AU13: 0.4984744021 | AW13: 6.765678745 | AX13: 2.48237525 | AY13: 2.220080186 | AZ13: 2.915499403 | BA13: 3.767753367 | BB13: 2.915499403 | BC13: 3.63027739
M14: -x- | N14: -x- | U14: -x- | V14: -x- | AC14: -x- | AD14: -x- | AK14: -x- | AL14: -x- | AM14: -x- | AT14: -x- | AU14: -x- | BB14: -x- | BC14: -x-
M15: -x- | N15: -x- | U15: -x- | V15: -x- | AC15: -x- | AD15: -x- | AK15: -x- | AL15: -x- | AM15: -x- | AT15: -x- | AU15: -x- | BB15: -x- | BC15: -x-
M16: -x- | N16: -x- | U16: -x- | V16: -x- | AC16: -x- | AD16: -x- | AK16: -x- | AL16: -x- | AM16: -x- | AT16: -x- | AU16: -x- | BB16: -x- | BC16: -x-
M17: -x- | N17: -x- | U17: -x- | V17: -x- | AC17: -x- | AD17: -x- | AK17: -x- | AL17: -x- | AM17: -x- | AT17: -x- | AU17: -x- | BB17: -x- | BC17: -x-
M18: -x- | N18: -x- | U18: -x- | V18: -x- | AC18: -x- | AD18: -x- | AK18: -x- | AL18: -x- | AM18: -x- | AT18: -x- | AU18: -x- | BB18: -x- | BC18: -x-
M19: -x- | N19: -x- | U19: -x- | V19: -x- | AC19: -x- | AD19: -x- | AK19: -x- | AL19: -x- | AM19: -x- | AT19: -x- | AU19: -x- | BB19: -x- | BC19: -x-
M20: -x- | N20: -x- | U20: -x- | V20: -x- | AC20: -x- | AD20: -x- | AK20: -x- | AL20: -x- | AM20: -x- | AT20: -x- | AU20: -x- | BB20: -x- | BC20: -x-
M21: -x- | N21: -x- | U21: -x- | V21: -x- | AC21: -x- | AD21: -x- | AK21: -x- | AL21: -x- | AM21: -x- | AT21: -x- | AU21: -x- | BB21: -x- | BC21: -x-
M22: -x- | N22: -x- | U22: -x- | V22: -x- | AC22: -x- | AD22: -x- | AK22: -x- | AL22: -x- | AM22: -x- | AT22: -x- | AU22: -x- | BB22: -x- | BC22: -x-
M23: -x- | N23: -x- | U23: -x- | V23: -x- | AC23: -x- | AD23: -x- | AK23: -x- | AL23: -x- | AM23: -x- | AT23: -x- | AU23: -x- | BB23: -x- | BC23: -x-
M24: -x- | N24: -x- | U24: -x- | V24: -x- | AC24: -x- | AD24: -x- | AK24: -x- | AL24: -x- | AM24: -x- | AT24: -x- | AU24: -x- | BB24: -x- | BC24: -x-
M25: -x- | N25: -x- | U25: -x- | V25: -x- | AC25: -x- | AD25: -x- | AK25: -x- | AL25: -x- | AM25: -x- | AT25: -x- | AU25: -x- | BB25: -x- | BC25: -x-
M26: -x- | N26: -x- | U26: -x- | V26: -x- | AC26: -x- | AD26: -x- | AK26: -x- | AL26: -x- | AM26: -x- | AT26: -x- | AU26: -x- | BB26: -x- | BC26: -x-
M27: -x- | N27: -x- | U27: -x- | V27: -x- | AC27: -x- | AD27: -x- | AK27: -x- | AL27: -x- | AM27: -x- | AT27: -x- | AU27: -x- | BB27: -x- | BC27: -x-
M28: -x- | N28: -x- | U28: -x- | V28: -x- | AC28: -x- | AD28: -x- | AK28: -x- | AL28: -x- | AM28: -x- | AT28: -x- | AU28: -x- | BB28: -x- | BC28: -x-
M29: -x- | N29: -x- | U29: -x- | V29: -x- | AC29: -x- | AD29: -x- | AK29: -x- | AL29: -x- | AM29: -x- | AT29: -x- | AU29: -x- | BB29: -x- | BC29: -x-
M30: -x- | N30: -x- | U30: -x- | V30: -x- | AC30: -x- | AD30: -x- | AK30: -x- | AL30: -x- | AM30: -x- | AT30: -x- | AU30: -x- | BB30: -x- | BC30: -x-
M31: -x- | N31: -x- | U31: -x- | V31: -x- | AC31: -x- | AD31: -x- | AK31: -x- | AL31: -x- | AM31: -x- | AT31: -x- | AU31: -x- | BB31: -x- | BC31: -x-
M32: -x- | N32: -x- | U32: -x- | V32: -x- | AC32: -x- | AD32: -x- | AK32: -x- | AL32: -x- | AM32: -x- | AT32: -x- | AU32: -x- | BB32: -x- | BC32: -x-
M33: -x- | N33: -x- | U33: -x- | V33: -x- | AC33: -x- | AD33: -x- | AK33: -x- | AL33: -x- | AM33: -x- | AT33: -x- | AU33: -x- | BB33: -x- | BC33: -x-
M34: -x- | N34: -x- | U34: -x- | V34: -x- | AC34: -x- | AD34: -x- | AK34: -x- | AL34: -x- | AM34: -x- | AT34: -x- | AU34: -x- | BB34: -x- | BC34: -x-
M35: -x- | N35: -x- | U35: -x- | V35: -x- | AC35: -x- | AD35: -x- | AK35: -x- | AL35: -x- | AM35: -x- | AT35: -x- | AU35: -x- | BB35: -x- | BC35: -x-
M36: -x- | N36: -x- | U36: -x- | V36: -x- | AC36: -x- | AD36: -x- | AK36: -x- | AL36: -x- | AM36: -x- | AT36: -x- | AU36: -x- | BB36: -x- | BC36: -x-
M37: -x- | N37: -x- | U37: -x- | V37: -x- | AC37: -x- | AD37: -x- | AK37: -x- | AL37: -x- | AM37: -x- | AT37: -x- | AU37: -x- | BB37: -x- | BC37: -x-
M38: -x- | N38: -x- | U38: -x- | V38: -x- | AC38: -x- | AD38: -x- | AK38: -x- | AL38: -x- | AM38: -x- | AT38: -x- | AU38: -x- | BB38: -x- | BC38: -x-
M39: -x- | N39: -x- | U39: -x- | V39: -x- | AC39: -x- | AD39: -x- | AK39: -x- | AL39: -x- | AM39: -x- | AT39: -x- | AU39: -x- | BB39: -x- | BC39: -x-
M40: -x- | N40: -x- | U40: -x- | V40: -x- | AC40: -x- | AD40: -x- | AK40: -x- | AL40: -x- | AM40: -x- | AT40: -x- | AU40: -x- | BB40: -x- | BC40: -x-
M41: -x- | N41: -x- | U41: -x- | V41: -x- | AC41: -x- | AD41: -x- | AK41: -x- | AL41: -x- | AM41: -x- | AT41: -x- | AU41: -x- | BB41: -x- | BC41: -x-
M42: -x- | N42: -x- | U42: -x- | V42: -x- | AC42: -x- | AD42: -x- | AK42: -x- | AL42: -x- | AM42: -x- | AT42: -x- | AU42: -x- | BB42: -x- | BC42: -x-
M43: -x- | N43: -x- | U43: -x- | V43: -x- | AC43: -x- | AD43: -x- | AK43: -x- | AL43: -x- | AM43: -x- | AT43: -x- | AU43: -x- | BB43: -x- | BC43: -x-
M44: -x- | N44: -x- | U44: -x- | V44: -x- | AC44: -x- | AD44: -x- | AK44: -x- | AL44: -x- | AM44: -x- | AT44: -x- | AU44: -x- | BB44: -x- | BC44: -x-
M45: -x- | N45: -x- | U45: -x- | V45: -x- | AC45: -x- | AD45: -x- | AK45: -x- | AL45: -x- | AM45: -x- | AT45: -x- | AU45: -x- | BB45: -x- | BC45: -x-
M46: -x- | N46: -x- | U46: -x- | V46: -x- | AC46: -x- | AD46: -x- | AK46: -x- | AL46: -x- | AM46: -x- | AT46: -x- | AU46: -x- | BB46: -x- | BC46: -x-
M47: -x- | N47: -x- | U47: -x- | V47: -x- | AC47: -x- | AD47: -x- | AK47: -x- | AL47: -x- | AM47: -x- | AT47: -x- | AU47: -x- | BB47: -x- | BC47: -x-
M48: -x- | N48: -x- | U48: -x- | V48: -x- | AC48: -x- | AD48: -x- | AK48: -x- | AL48: -x- | AM48: -x- | AT48: -x- | AU48: -x- | BB48: -x- | BC48: -x-
M49: -x- | N49: -x- | U49: -x- | V49: -x- | AC49: -x- | AD49: -x- | AK49: -x- | AL49: -x- | AM49: -x- | AT49: -x- | AU49: -x- | BB49: -x- | BC49: -x-
M50: -x- | N50: -x- | U50: -x- | V50: -x- | AC50: -x- | AD50: -x- | AK50: -x- | AL50: -x- | AM50: -x- | AT50: -x- | AU50: -x- | BB50: -x- | BC50: -x-
M51: -x- | N51: -x- | U51: -x- | V51: -x- | AC51: -x- | AD51: -x- | AK51: -x- | AL51: -x- | AM51: -x- | AT51: -x- | AU51: -x- | BB51: -x- | BC51: -x-
M52: -x- | N52: -x- | U52: -x- | V52: -x- | AC52: -x- | AD52: -x- | AK52: -x- | AL52: -x- | AM52: -x- | AT52: -x- | AU52: -x- | BB52: -x- | BC52: -x-
M53: -x- | N53: -x- | U53: -x- | V53: -x- | AC53: -x- | AD53: -x- | AK53: -x- | AL53: -x- | AM53: -x- | AT53: -x- | AU53: -x- | BB53: -x- | BC53: -x-
M54: -x- | N54: -x- | U54: -x- | V54: -x- | AC54: -x- | AD54: -x- | AK54: -x- | AL54: -x- | AM54: -x- | AT54: -x- | AU54: -x- | BB54: -x- | BC54: -x-
M55: -x- | N55: -x- | U55: -x- | V55: -x- | AC55: -x- | AD55: -x- | AK55: -x- | AL55: -x- | AM55: -x- | AT55: -x- | AU55: -x- | BB55: -x- | BC55: -x-
M56: -x- | N56: -x- | U56: -x- | V56: -x- | AC56: -x- | AD56: -x- | AK56: -x- | AL56: -x- | AM56: -x- | AT56: -x- | AU56: -x- | BB56: -x- | BC56: -x-
M57: -x- | N57: -x- | U57: -x- | V57: -x- | AC57: -x- | AD57: -x- | AK57: -x- | AL57: -x- | AM57: -x- | AT57: -x- | AU57: -x- | BB57: -x- | BC57: -x-
M58: -x- | N58: -x- | U58: -x- | V58: -x- | AC58: -x- | AD58: -x- | AK58: -x- | AL58: -x- | AM58: -x- | AT58: -x- | AU58: -x- | BB58: -x- | BC58: -x-
M59: -x- | N59: -x- | U59: -x- | V59: -x- | AC59: -x- | AD59: -x- | AK59: -x- | AL59: -x- | AM59: -x- | AT59: -x- | AU59: -x- | BB59: -x- | BC59: -x-
M60: -x- | N60: -x- | U60: -x- | V60: -x- | AC60: -x- | AD60: -x- | AK60: -x- | AL60: -x- | AM60: -x- | AT60: -x- | AU60: -x- | BB60: -x- | BC60: -x-
M61: -x- | N61: -x- | U61: -x- | V61: -x- | AC61: -x- | AD61: -x- | AK61: -x- | AL61: -x- | AM61: -x- | AT61: -x- | AU61: -x- | BB61: -x- | BC61: -x-
M62: -x- | N62: -x- | U62: -x- | V62: -x- | AC62: -x- | AD62: -x- | AK62: -x- | AL62: -x- | AM62: -x- | AT62: -x- | AU62: -x- | BB62: -x- | BC62: -x-
M63: -x- | N63: -x- | U63: -x- | V63: -x- | AC63: -x- | AD63: -x- | AK63: -x- | AL63: -x- | AM63: -x- | AT63: -x- | AU63: -x- | BB63: -x- | BC63: -x-
M64: -x- | N64: -x- | U64: -x- | V64: -x- | AC64: -x- | AD64: -x- | AK64: -x- | AL64: -x- | AM64: -x- | AT64: -x- | AU64: -x- | BB64: -x- | BC64: -x-
M65: -x- | N65: -x- | U65: -x- | V65: -x- | AC65: -x- | AD65: -x- | AK65: -x- | AL65: -x- | AM65: -x- | AT65: -x- | AU65: -x- | BB65: -x- | BC65: -x-
M66: -x- | N66: -x- | U66: -x- | V66: -x- | AC66: -x- | AD66: -x- | AK66: -x- | AL66: -x- | AM66: -x- | AT66: -x- | AU66: -x- | BB66: -x- | BC66: -x-
M67: -x- | N67: -x- | U67: -x- | V67: -x- | AC67: -x- | AD67: -x- | AK67: -x- | AL67: -x- | AM67: -x- | AT67: -x- | AU67: -x- | BB67: -x- | BC67: -x-
M68: -x- | N68: -x- | U68: -x- | V68: -x- | AC68: -x- | AD68: -x- | AK68: -x- | AL68: -x- | AM68: -x- | AT68: -x- | AU68: -x- | BB68: -x- | BC68: -x-
M69: -x- | N69: -x- | U69: -x- | V69: -x- | AC69: -x- | AD69: -x- | AK69: -x- | AL69: -x- | AM69: -x- | AT69: -x- | AU69: -x- | BB69: -x- | BC69: -x-
M70: =IFERROR(MEDIAN(H70:L70),"-x-") -> -x- | N70: =IFERROR(AVERAGEIFS(H70:L70,H70:L70,">0",H70:L70,"<50"),"-x-") -> -x- | U70: =IFERROR(MEDIAN(P70:T70),"-x-") -> -x- | V70: =IFERROR(AVERAGEIFS(P70:T70,P70:T70,">0",P70:T70,"<50"),"-x-") -> -x- | AC70: =IFERROR(MEDIAN(X70:AB70),"-x-") -> -x- | AD70: =IFERROR(AVERAGE(X70:AB70),"-x-") -> -x- | AK70: =IF(MAX(AF70:AJ70)=0,"-x-",MAX(AF70:AJ70)) -> -x- | AL70: =IFERROR(AJ70/AK70,"-x-") -> -x- | AM70: -x- | AT70: =IFERROR(MEDIAN(AO70:AS70),"-x-") -> -x- | AU70: =IFERROR(AVERAGEIFS(AO70:AS70,AO70:AS70,">0",AO70:AS70,"<50"),"-x-") -> -x- | BB70: =IFERROR(MEDIAN(AW70:BA70),"-x-") -> -x- | BC70: =IFERROR(AVERAGEIFS(AW70:BA70,AW70:BA70,">0",AW70:BA70,"<50"),"-x-") -> -x-
M71: -x- | N71: -x- | U71: -x- | V71: -x- | AC71: -x- | AD71: -x- | AK71: -x- | AL71: -x- | AM71: =IFERROR(AVERAGEIFS(AF71:AJ71,AF71:AJ71,">0",AF71:AJ71,"<30"),"-x-") -> -x- | AT71: -x- | AU71: -x- | BB71: -x- | BC71: -x-
M72: -x- | N72: -x- | U72: -x- | V72: -x- | AC72: -x- | AD72: -x- | AK72: -x- | AL72: -x- | AM72: -x- | AT72: -x- | AU72: -x- | BB72: -x- | BC72: -x-
M73: -x- | N73: -x- | U73: -x- | V73: -x- | AC73: -x- | AD73: -x- | AK73: -x- | AL73: -x- | AM73: -x- | AT73: -x- | AU73: -x- | BB73: -x- | BC73: -x-
M74: -x- | N74: -x- | U74: -x- | V74: -x- | AC74: -x- | AD74: -x- | AK74: -x- | AL74: -x- | AM74: -x- | AT74: -x- | AU74: -x- | BB74: -x- | BC74: -x-
M75: -x- | N75: -x- | U75: -x- | V75: -x- | AC75: -x- | AD75: -x- | AK75: -x- | AL75: -x- | AM75: -x- | AT75: -x- | AU75: -x- | BB75: -x- | BC75: -x-
M76: -x- | N76: -x- | U76: -x- | V76: -x- | AC76: -x- | AD76: -x- | AK76: -x- | AL76: -x- | AM76: -x- | AT76: -x- | AU76: -x- | BB76: -x- | BC76: -x-
M77: -x- | N77: -x- | U77: -x- | V77: -x- | AC77: -x- | AD77: -x- | AK77: -x- | AL77: -x- | AM77: -x- | AT77: -x- | AU77: -x- | BB77: -x- | BC77: -x-
M78: -x- | N78: -x- | U78: -x- | V78: -x- | AC78: -x- | AD78: -x- | AK78: -x- | AL78: -x- | AM78: -x- | AT78: -x- | AU78: -x- | BB78: -x- | BC78: -x-
M79: -x- | N79: -x- | U79: -x- | V79: -x- | AC79: -x- | AD79: -x- | AK79: -x- | AL79: -x- | AM79: -x- | AT79: -x- | AU79: -x- | BB79: -x- | BC79: -x-
M80: -x- | N80: -x- | U80: -x- | V80: -x- | AC80: -x- | AD80: -x- | AK80: -x- | AL80: -x- | AM80: -x- | AT80: -x- | AU80: -x- | BB80: -x- | BC80: -x-
M81: -x- | N81: -x- | U81: -x- | V81: -x- | AC81: -x- | AD81: -x- | AK81: -x- | AL81: -x- | AM81: -x- | AT81: -x- | AU81: -x- | BB81: -x- | BC81: -x-
M82: -x- | N82: -x- | U82: -x- | V82: -x- | AC82: -x- | AD82: -x- | AK82: -x- | AL82: -x- | AM82: -x- | AT82: -x- | AU82: -x- | BB82: -x- | BC82: -x-
M83: -x- | N83: -x- | U83: -x- | V83: -x- | AC83: -x- | AD83: -x- | AK83: -x- | AL83: -x- | AM83: -x- | AT83: -x- | AU83: -x- | BB83: -x- | BC83: -x-
M84: -x- | N84: -x- | U84: -x- | V84: -x- | AC84: -x- | AD84: -x- | AK84: -x- | AL84: -x- | AM84: -x- | AT84: -x- | AU84: -x- | BB84: -x- | BC84: -x-
M85: -x- | N85: -x- | U85: -x- | V85: -x- | AC85: -x- | AD85: -x- | AK85: -x- | AL85: -x- | AM85: -x- | AT85: -x- | AU85: -x- | BB85: -x- | BC85: -x-
M86: -x- | N86: -x- | U86: -x- | V86: -x- | AC86: -x- | AD86: -x- | AK86: -x- | AL86: -x- | AM86: -x- | AT86: -x- | AU86: -x- | BB86: -x- | BC86: -x-
M87: -x- | N87: -x- | U87: -x- | V87: -x- | AC87: -x- | AD87: -x- | AK87: -x- | AL87: -x- | AM87: -x- | AT87: -x- | AU87: -x- | BB87: -x- | BC87: -x-
M88: -x- | N88: -x- | U88: -x- | V88: -x- | AC88: -x- | AD88: -x- | AK88: -x- | AL88: -x- | AM88: -x- | AT88: -x- | AU88: -x- | BB88: -x- | BC88: -x-
M89: -x- | N89: -x- | U89: -x- | V89: -x- | AC89: -x- | AD89: -x- | AK89: -x- | AL89: -x- | AM89: -x- | AT89: -x- | AU89: -x- | BB89: -x- | BC89: -x-
M90: -x- | N90: -x- | U90: -x- | V90: -x- | AC90: -x- | AD90: -x- | AK90: -x- | AL90: -x- | AM90: -x- | AT90: -x- | AU90: -x- | BB90: -x- | BC90: -x-
M91: -x- | N91: -x- | U91: -x- | V91: -x- | AC91: -x- | AD91: -x- | AK91: -x- | AL91: -x- | AM91: -x- | AT91: -x- | AU91: -x- | BB91: -x- | BC91: -x-
M92: -x- | N92: -x- | U92: -x- | V92: -x- | AC92: -x- | AD92: -x- | AK92: -x- | AL92: -x- | AM92: -x- | AT92: -x- | AU92: -x- | BB92: -x- | BC92: -x-
M93: -x- | N93: -x- | U93: -x- | V93: -x- | AC93: -x- | AD93: -x- | AK93: -x- | AL93: -x- | AM93: -x- | AT93: -x- | AU93: -x- | BB93: -x- | BC93: -x-
M94: -x- | N94: -x- | U94: -x- | V94: -x- | AC94: -x- | AD94: -x- | AK94: -x- | AL94: -x- | AM94: -x- | AT94: -x- | AU94: -x- | BB94: -x- | BC94: -x-
M95: -x- | N95: -x- | U95: -x- | V95: -x- | AC95: -x- | AD95: -x- | AK95: -x- | AL95: -x- | AM95: -x- | AT95: -x- | AU95: -x- | BB95: -x- | BC95: -x-
M96: -x- | N96: -x- | U96: -x- | V96: -x- | AC96: -x- | AD96: -x- | AK96: -x- | AL96: -x- | AM96: -x- | AT96: -x- | AU96: -x- | BB96: -x- | BC96: -x-
M97: -x- | N97: -x- | U97: -x- | V97: -x- | AC97: -x- | AD97: -x- | AK97: -x- | AL97: -x- | AM97: -x- | AT97: -x- | AU97: -x- | BB97: -x- | BC97: -x-
M98: -x- | N98: -x- | U98: -x- | V98: -x- | AC98: -x- | AD98: -x- | AK98: -x- | AL98: -x- | AM98: -x- | AT98: -x- | AU98: -x- | BB98: -x- | BC98: -x-
M99: -x- | N99: -x- | U99: -x- | V99: -x- | AC99: -x- | AD99: -x- | AK99: -x- | AL99: -x- | AM99: -x- | AT99: -x- | AU99: -x- | BB99: -x- | BC99: -x-
M100: -x- | N100: -x- | U100: -x- | V100: -x- | AC100: -x- | AD100: -x- | AK100: -x- | AL100: -x- | AM100: -x- | AT100: -x- | AU100: -x- | BB100: -x- | BC100: -x-
M101: -x- | N101: -x- | U101: -x- | V101: -x- | AC101: -x- | AD101: -x- | AK101: -x- | AL101: -x- | AM101: -x- | AT101: -x- | AU101: -x- | BB101: -x- | BC101: -x-
M102: -x- | N102: -x- | U102: -x- | V102: -x- | AC102: -x- | AD102: -x- | AK102: -x- | AL102: -x- | AM102: -x- | AT102: -x- | AU102: -x- | BB102: -x- | BC102: -x-
M103: -x- | N103: -x- | U103: -x- | V103: -x- | AC103: -x- | AD103: -x- | AK103: -x- | AL103: -x- | AM103: -x- | AT103: -x- | AU103: -x- | BB103: -x- | BC103: -x-
M104: -x- | N104: -x- | U104: -x- | V104: -x- | AC104: -x- | AD104: -x- | AK104: -x- | AL104: -x- | AM104: -x- | AT104: -x- | AU104: -x- | BB104: -x- | BC104: -x-
M105: -x- | N105: -x- | U105: -x- | V105: -x- | AC105: -x- | AD105: -x- | AK105: -x- | AL105: -x- | AM105: -x- | AT105: -x- | AU105: -x- | BB105: -x- | BC105: -x-
M106: -x- | N106: -x- | U106: -x- | V106: -x- | AC106: -x- | AD106: -x- | AK106: -x- | AL106: -x- | AM106: -x- | AT106: -x- | AU106: -x- | BB106: -x- | BC106: -x-
M107: -x- | N107: -x- | U107: -x- | V107: -x- | AC107: -x- | AD107: -x- | AK107: -x- | AL107: -x- | AM107: -x- | AT107: -x- | AU107: -x- | BB107: -x- | BC107: -x-
M108: -x- | N108: -x- | U108: -x- | V108: -x- | AC108: -x- | AD108: -x- | AK108: -x- | AL108: -x- | AM108: -x- | AT108: -x- | AU108: -x- | BB108: -x- | BC108: -x-
M109: -x- | N109: -x- | U109: -x- | V109: -x- | AC109: -x- | AD109: -x- | AK109: -x- | AL109: -x- | AM109: -x- | AT109: -x- | AU109: -x- | BB109: -x- | BC109: -x-
M110: -x- | N110: -x- | U110: -x- | V110: -x- | AC110: -x- | AD110: -x- | AK110: -x- | AL110: -x- | AM110: -x- | AT110: -x- | AU110: -x- | BB110: -x- | BC110: -x-
M111: -x- | N111: -x- | U111: -x- | V111: -x- | AC111: -x- | AD111: -x- | AK111: -x- | AL111: -x- | AM111: -x- | AT111: -x- | AU111: -x- | BB111: -x- | BC111: -x-
M112: -x- | N112: -x- | U112: -x- | V112: -x- | AC112: -x- | AD112: -x- | AK112: -x- | AL112: -x- | AM112: -x- | AT112: -x- | AU112: -x- | BB112: -x- | BC112: -x-
M113: -x- | N113: -x- | U113: -x- | V113: -x- | AC113: -x- | AD113: -x- | AK113: -x- | AL113: -x- | AM113: -x- | AT113: -x- | AU113: -x- | BB113: -x- | BC113: -x-
M114: -x- | N114: -x- | U114: -x- | V114: -x- | AC114: -x- | AD114: -x- | AK114: -x- | AL114: -x- | AM114: -x- | AT114: -x- | AU114: -x- | BB114: -x- | BC114: -x-
M115: -x- | N115: -x- | U115: -x- | V115: -x- | AC115: -x- | AD115: -x- | AK115: -x- | AL115: -x- | AM115: -x- | AT115: -x- | AU115: -x- | BB115: -x- | BC115: -x-
M116: -x- | N116: -x- | U116: -x- | V116: -x- | AC116: -x- | AD116: -x- | AK116: -x- | AL116: -x- | AM116: -x- | AT116: -x- | AU116: -x- | BB116: -x- | BC116: -x-
M117: -x- | N117: -x- | U117: -x- | V117: -x- | AC117: -x- | AD117: -x- | AK117: -x- | AL117: -x- | AM117: -x- | AT117: -x- | AU117: -x- | BB117: -x- | BC117: -x-
M118: -x- | N118: -x- | U118: -x- | V118: -x- | AC118: -x- | AD118: -x- | AK118: -x- | AL118: -x- | AM118: -x- | AT118: -x- | AU118: -x- | BB118: -x- | BC118: -x-
M119: -x- | N119: -x- | U119: -x- | V119: -x- | AC119: -x- | AD119: -x- | AK119: -x- | AL119: -x- | AM119: -x- | AT119: -x- | AU119: -x- | BB119: -x- | BC119: -x-
M120: -x- | N120: -x- | U120: -x- | V120: -x- | AC120: -x- | AD120: -x- | AK120: -x- | AL120: -x- | AM120: -x- | AT120: -x- | AU120: -x- | BB120: -x- | BC120: -x-
M121: -x- | N121: -x- | U121: -x- | V121: -x- | AC121: -x- | AD121: -x- | AK121: -x- | AL121: -x- | AM121: -x- | AT121: -x- | AU121: -x- | BB121: -x- | BC121: -x-
M122: -x- | N122: -x- | U122: -x- | V122: -x- | AC122: -x- | AD122: -x- | AK122: -x- | AL122: -x- | AM122: -x- | AT122: -x- | AU122: -x- | BB122: -x- | BC122: -x-
M123: -x- | N123: -x- | U123: -x- | V123: -x- | AC123: -x- | AD123: -x- | AK123: -x- | AL123: -x- | AM123: -x- | AT123: -x- | AU123: -x- | BB123: -x- | BC123: -x-
M124: -x- | N124: -x- | U124: -x- | V124: -x- | AC124: -x- | AD124: -x- | AK124: -x- | AL124: -x- | AM124: -x- | AT124: -x- | AU124: -x- | BB124: -x- | BC124: -x-
M125: -x- | N125: -x- | U125: -x- | V125: -x- | AC125: -x- | AD125: -x- | AK125: -x- | AL125: -x- | AM125: -x- | AT125: -x- | AU125: -x- | BB125: -x- | BC125: -x-
M126: -x- | N126: -x- | U126: -x- | V126: -x- | AC126: -x- | AD126: -x- | AK126: -x- | AL126: -x- | AM126: -x- | AT126: -x- | AU126: -x- | BB126: -x- | BC126: -x-
M127: -x- | N127: -x- | U127: -x- | V127: -x- | AC127: -x- | AD127: -x- | AK127: -x- | AL127: -x- | AM127: -x- | AT127: -x- | AU127: -x- | BB127: -x- | BC127: -x-
M128: -x- | N128: -x- | U128: -x- | V128: -x- | AC128: -x- | AD128: -x- | AK128: -x- | AL128: -x- | AM128: -x- | AT128: -x- | AU128: -x- | BB128: -x- | BC128: -x-
M129: -x- | N129: -x- | U129: -x- | V129: -x- | AC129: -x- | AD129: -x- | AK129: -x- | AL129: -x- | AM129: -x- | AT129: -x- | AU129: -x- | BB129: -x- | BC129: -x-
M130: -x- | N130: -x- | U130: -x- | V130: -x- | AC130: -x- | AD130: -x- | AK130: -x- | AL130: -x- | AM130: -x- | AT130: -x- | AU130: -x- | BB130: -x- | BC130: -x-
M131: -x- | N131: -x- | U131: -x- | V131: -x- | AC131: -x- | AD131: -x- | AK131: -x- | AL131: -x- | AM131: -x- | AT131: -x- | AU131: -x- | BB131: -x- | BC131: -x-
M132: -x- | N132: -x- | U132: -x- | V132: -x- | AC132: -x- | AD132: -x- | AK132: -x- | AL132: -x- | AM132: -x- | AT132: -x- | AU132: -x- | BB132: -x- | BC132: -x-
M133: -x- | N133: -x- | U133: -x- | V133: -x- | AC133: -x- | AD133: -x- | AK133: -x- | AL133: -x- | AM133: -x- | AT133: -x- | AU133: -x- | BB133: -x- | BC133: -x-
M134: =IFERROR(MEDIAN(H134:L134),"-x-") -> -x- | N134: =IFERROR(AVERAGEIFS(H134:L134,H134:L134,">0",H134:L134,"<50"),"-x-") -> -x- | U134: =IFERROR(MEDIAN(P134:T134),"-x-") -> -x- | V134: =IFERROR(AVERAGEIFS(P134:T134,P134:T134,">0",P134:T134,"<50"),"-x-") -> -x- | AC134: =IFERROR(MEDIAN(X134:AB134),"-x-") -> -x- | AD134: =IFERROR(AVERAGE(X134:AB134),"-x-") -> -x- | AK134: =IF(MAX(AF134:AJ134)=0,"-x-",MAX(AF134:AJ134)) -> -x- | AL134: =IFERROR(AJ134/AK134,"-x-") -> -x- | AM134: -x- | AT134: =IFERROR(MEDIAN(AO134:AS134),"-x-") -> -x- | AU134: =IFERROR(AVERAGEIFS(AO134:AS134,AO134:AS134,">0",AO134:AS134,"<50"),"-x-") -> -x- | BB134: =IFERROR(MEDIAN(AW134:BA134),"-x-") -> -x- | BC134: =IFERROR(AVERAGEIFS(AW134:BA134,AW134:BA134,">0",AW134:BA134,"<50"),"-x-") -> -x-
M135: -x- | N135: -x- | U135: -x- | V135: -x- | AC135: -x- | AD135: -x- | AK135: -x- | AL135: -x- | AM135: =IFERROR(AVERAGEIFS(AF135:AJ135,AF135:AJ135,">0",AF135:AJ135,"<30"),"-x-") -> -x- | AT135: -x- | AU135: -x- | BB135: -x- | BC135: -x-
M136: -x- | N136: -x- | U136: -x- | V136: -x- | AC136: -x- | AD136: -x- | AK136: -x- | AL136: -x- | AM136: -x- | AT136: -x- | AU136: -x- | BB136: -x- | BC136: -x-
M137: -x- | N137: -x- | U137: -x- | V137: -x- | AC137: -x- | AD137: -x- | AK137: -x- | AL137: -x- | AM137: -x- | AT137: -x- | AU137: -x- | BB137: -x- | BC137: -x-
M138: -x- | N138: -x- | U138: -x- | V138: -x- | AC138: -x- | AD138: -x- | AK138: -x- | AL138: -x- | AM138: -x- | AT138: -x- | AU138: -x- | BB138: -x- | BC138: -x-
M139: -x- | N139: -x- | U139: -x- | V139: -x- | AC139: -x- | AD139: -x- | AK139: -x- | AL139: -x- | AM139: -x- | AT139: -x- | AU139: -x- | BB139: -x- | BC139: -x-
M140: -x- | N140: -x- | U140: -x- | V140: -x- | AC140: -x- | AD140: -x- | AK140: -x- | AL140: -x- | AM140: -x- | AT140: -x- | AU140: -x- | BB140: -x- | BC140: -x-
M141: -x- | N141: -x- | U141: -x- | V141: -x- | AC141: -x- | AD141: -x- | AK141: -x- | AL141: -x- | AM141: -x- | AT141: -x- | AU141: -x- | BB141: -x- | BC141: -x-
M142: -x- | N142: -x- | U142: -x- | V142: -x- | AC142: -x- | AD142: -x- | AK142: -x- | AL142: -x- | AM142: -x- | AT142: -x- | AU142: -x- | BB142: -x- | BC142: -x-
M143: -x- | N143: -x- | U143: -x- | V143: -x- | AC143: -x- | AD143: -x- | AK143: -x- | AL143: -x- | AM143: -x- | AT143: -x- | AU143: -x- | BB143: -x- | BC143: -x-
M144: -x- | N144: -x- | U144: -x- | V144: -x- | AC144: -x- | AD144: -x- | AK144: -x- | AL144: -x- | AM144: -x- | AT144: -x- | AU144: -x- | BB144: -x- | BC144: -x-
M145: -x- | N145: -x- | U145: -x- | V145: -x- | AC145: -x- | AD145: -x- | AK145: -x- | AL145: -x- | AM145: -x- | AT145: -x- | AU145: -x- | BB145: -x- | BC145: -x-
M146: -x- | N146: -x- | U146: -x- | V146: -x- | AC146: -x- | AD146: -x- | AK146: -x- | AL146: -x- | AM146: -x- | AT146: -x- | AU146: -x- | BB146: -x- | BC146: -x-
M147: -x- | N147: -x- | U147: -x- | V147: -x- | AC147: -x- | AD147: -x- | AK147: -x- | AL147: -x- | AM147: -x- | AT147: -x- | AU147: -x- | BB147: -x- | BC147: -x-
M148: -x- | N148: -x- | U148: -x- | V148: -x- | AC148: -x- | AD148: -x- | AK148: -x- | AL148: -x- | AM148: -x- | AT148: -x- | AU148: -x- | BB148: -x- | BC148: -x-
M149: -x- | N149: -x- | U149: -x- | V149: -x- | AC149: -x- | AD149: -x- | AK149: -x- | AL149: -x- | AM149: -x- | AT149: -x- | AU149: -x- | BB149: -x- | BC149: -x-
M150: -x- | N150: -x- | U150: -x- | V150: -x- | AC150: -x- | AD150: -x- | AK150: -x- | AL150: -x- | AM150: -x- | AT150: -x- | AU150: -x- | BB150: -x- | BC150: -x-
M151: -x- | N151: -x- | U151: -x- | V151: -x- | AC151: -x- | AD151: -x- | AK151: -x- | AL151: -x- | AM151: -x- | AT151: -x- | AU151: -x- | BB151: -x- | BC151: -x-
M152: -x- | N152: -x- | U152: -x- | V152: -x- | AC152: -x- | AD152: -x- | AK152: -x- | AL152: -x- | AM152: -x- | AT152: -x- | AU152: -x- | BB152: -x- | BC152: -x-
M153: -x- | N153: -x- | U153: -x- | V153: -x- | AC153: -x- | AD153: -x- | AK153: -x- | AL153: -x- | AM153: -x- | AT153: -x- | AU153: -x- | BB153: -x- | BC153: -x-
M154: -x- | N154: -x- | U154: -x- | V154: -x- | AC154: -x- | AD154: -x- | AK154: -x- | AL154: -x- | AM154: -x- | AT154: -x- | AU154: -x- | BB154: -x- | BC154: -x-
M155: -x- | N155: -x- | U155: -x- | V155: -x- | AC155: -x- | AD155: -x- | AK155: -x- | AL155: -x- | AM155: -x- | AT155: -x- | AU155: -x- | BB155: -x- | BC155: -x-
M156: -x- | N156: -x- | U156: -x- | V156: -x- | AC156: -x- | AD156: -x- | AK156: -x- | AL156: -x- | AM156: -x- | AT156: -x- | AU156: -x- | BB156: -x- | BC156: -x-
M157: -x- | N157: -x- | U157: -x- | V157: -x- | AC157: -x- | AD157: -x- | AK157: -x- | AL157: -x- | AM157: -x- | AT157: -x- | AU157: -x- | BB157: -x- | BC157: -x-
M158: -x- | N158: -x- | U158: -x- | V158: -x- | AC158: -x- | AD158: -x- | AK158: -x- | AL158: -x- | AM158: -x- | AT158: -x- | AU158: -x- | BB158: -x- | BC158: -x-
M159: -x- | N159: -x- | U159: -x- | V159: -x- | AC159: -x- | AD159: -x- | AK159: -x- | AL159: -x- | AM159: -x- | AT159: -x- | AU159: -x- | BB159: -x- | BC159: -x-
M160: -x- | N160: -x- | U160: -x- | V160: -x- | AC160: -x- | AD160: -x- | AK160: -x- | AL160: -x- | AM160: -x- | AT160: -x- | AU160: -x- | BB160: -x- | BC160: -x-
M161: -x- | N161: -x- | U161: -x- | V161: -x- | AC161: -x- | AD161: -x- | AK161: -x- | AL161: -x- | AM161: -x- | AT161: -x- | AU161: -x- | BB161: -x- | BC161: -x-
M162: -x- | N162: -x- | U162: -x- | V162: -x- | AC162: -x- | AD162: -x- | AK162: -x- | AL162: -x- | AM162: -x- | AT162: -x- | AU162: -x- | BB162: -x- | BC162: -x-
M163: -x- | N163: -x- | U163: -x- | V163: -x- | AC163: -x- | AD163: -x- | AK163: -x- | AL163: -x- | AM163: -x- | AT163: -x- | AU163: -x- | BB163: -x- | BC163: -x-
M164: -x- | N164: -x- | U164: -x- | V164: -x- | AC164: -x- | AD164: -x- | AK164: -x- | AL164: -x- | AM164: -x- | AT164: -x- | AU164: -x- | BB164: -x- | BC164: -x-
M165: -x- | N165: -x- | U165: -x- | V165: -x- | AC165: -x- | AD165: -x- | AK165: -x- | AL165: -x- | AM165: -x- | AT165: -x- | AU165: -x- | BB165: -x- | BC165: -x-
M166: -x- | N166: -x- | U166: -x- | V166: -x- | AC166: -x- | AD166: -x- | AK166: -x- | AL166: -x- | AM166: -x- | AT166: -x- | AU166: -x- | BB166: -x- | BC166: -x-
M167: -x- | N167: -x- | U167: -x- | V167: -x- | AC167: -x- | AD167: -x- | AK167: -x- | AL167: -x- | AM167: -x- | AT167: -x- | AU167: -x- | BB167: -x- | BC167: -x-
M168: -x- | N168: -x- | U168: -x- | V168: -x- | AC168: -x- | AD168: -x- | AK168: -x- | AL168: -x- | AM168: -x- | AT168: -x- | AU168: -x- | BB168: -x- | BC168: -x-
M169: -x- | N169: -x- | U169: -x- | V169: -x- | AC169: -x- | AD169: -x- | AK169: -x- | AL169: -x- | AM169: -x- | AT169: -x- | AU169: -x- | BB169: -x- | BC169: -x-
M170: -x- | N170: -x- | U170: -x- | V170: -x- | AC170: -x- | AD170: -x- | AK170: -x- | AL170: -x- | AM170: -x- | AT170: -x- | AU170: -x- | BB170: -x- | BC170: -x-
M171: -x- | N171: -x- | U171: -x- | V171: -x- | AC171: -x- | AD171: -x- | AK171: -x- | AL171: -x- | AM171: -x- | AT171: -x- | AU171: -x- | BB171: -x- | BC171: -x-
M172: -x- | N172: -x- | U172: -x- | V172: -x- | AC172: -x- | AD172: -x- | AK172: -x- | AL172: -x- | AM172: -x- | AT172: -x- | AU172: -x- | BB172: -x- | BC172: -x-
M173: -x- | N173: -x- | U173: -x- | V173: -x- | AC173: -x- | AD173: -x- | AK173: -x- | AL173: -x- | AM173: -x- | AT173: -x- | AU173: -x- | BB173: -x- | BC173: -x-
M174: -x- | N174: -x- | U174: -x- | V174: -x- | AC174: -x- | AD174: -x- | AK174: -x- | AL174: -x- | AM174: -x- | AT174: -x- | AU174: -x- | BB174: -x- | BC174: -x-
M175: -x- | N175: -x- | U175: -x- | V175: -x- | AC175: -x- | AD175: -x- | AK175: -x- | AL175: -x- | AM175: -x- | AT175: -x- | AU175: -x- | BB175: -x- | BC175: -x-
M176: -x- | N176: -x- | U176: -x- | V176: -x- | AC176: -x- | AD176: -x- | AK176: -x- | AL176: -x- | AM176: -x- | AT176: -x- | AU176: -x- | BB176: -x- | BC176: -x-
M177: -x- | N177: -x- | U177: -x- | V177: -x- | AC177: -x- | AD177: -x- | AK177: -x- | AL177: -x- | AM177: -x- | AT177: -x- | AU177: -x- | BB177: -x- | BC177: -x-
M178: -x- | N178: -x- | U178: -x- | V178: -x- | AC178: -x- | AD178: -x- | AK178: -x- | AL178: -x- | AM178: -x- | AT178: -x- | AU178: -x- | BB178: -x- | BC178: -x-
M179: -x- | N179: -x- | U179: -x- | V179: -x- | AC179: -x- | AD179: -x- | AK179: -x- | AL179: -x- | AM179: -x- | AT179: -x- | AU179: -x- | BB179: -x- | BC179: -x-
M180: -x- | N180: -x- | U180: -x- | V180: -x- | AC180: -x- | AD180: -x- | AK180: -x- | AL180: -x- | AM180: -x- | AT180: -x- | AU180: -x- | BB180: -x- | BC180: -x-
M181: -x- | N181: -x- | U181: -x- | V181: -x- | AC181: -x- | AD181: -x- | AK181: -x- | AL181: -x- | AM181: -x- | AT181: -x- | AU181: -x- | BB181: -x- | BC181: -x-
M182: -x- | N182: -x- | U182: -x- | V182: -x- | AC182: -x- | AD182: -x- | AK182: -x- | AL182: -x- | AM182: -x- | AT182: -x- | AU182: -x- | BB182: -x- | BC182: -x-
M183: -x- | N183: -x- | U183: -x- | V183: -x- | AC183: -x- | AD183: -x- | AK183: -x- | AL183: -x- | AM183: -x- | AT183: -x- | AU183: -x- | BB183: -x- | BC183: -x-
M184: -x- | N184: -x- | U184: -x- | V184: -x- | AC184: -x- | AD184: -x- | AK184: -x- | AL184: -x- | AM184: -x- | AT184: -x- | AU184: -x- | BB184: -x- | BC184: -x-
M185: -x- | N185: -x- | U185: -x- | V185: -x- | AC185: -x- | AD185: -x- | AK185: -x- | AL185: -x- | AM185: -x- | AT185: -x- | AU185: -x- | BB185: -x- | BC185: -x-
M186: -x- | N186: -x- | U186: -x- | V186: -x- | AC186: -x- | AD186: -x- | AK186: -x- | AL186: -x- | AM186: -x- | AT186: -x- | AU186: -x- | BB186: -x- | BC186: -x-
M187: -x- | N187: -x- | U187: -x- | V187: -x- | AC187: -x- | AD187: -x- | AK187: -x- | AL187: -x- | AM187: -x- | AT187: -x- | AU187: -x- | BB187: -x- | BC187: -x-
M188: -x- | N188: -x- | U188: -x- | V188: -x- | AC188: -x- | AD188: -x- | AK188: -x- | AL188: -x- | AM188: -x- | AT188: -x- | AU188: -x- | BB188: -x- | BC188: -x-
M189: -x- | N189: -x- | U189: -x- | V189: -x- | AC189: -x- | AD189: -x- | AK189: -x- | AL189: -x- | AM189: -x- | AT189: -x- | AU189: -x- | BB189: -x- | BC189: -x-
M190: -x- | N190: -x- | U190: -x- | V190: -x- | AC190: -x- | AD190: -x- | AK190: -x- | AL190: -x- | AM190: -x- | AT190: -x- | AU190: -x- | BB190: -x- | BC190: -x-
M191: -x- | N191: -x- | U191: -x- | V191: -x- | AC191: -x- | AD191: -x- | AK191: -x- | AL191: -x- | AM191: -x- | AT191: -x- | AU191: -x- | BB191: -x- | BC191: -x-
M192: -x- | N192: -x- | U192: -x- | V192: -x- | AC192: -x- | AD192: -x- | AK192: -x- | AL192: -x- | AM192: -x- | AT192: -x- | AU192: -x- | BB192: -x- | BC192: -x-
M193: -x- | N193: -x- | U193: -x- | V193: -x- | AC193: -x- | AD193: -x- | AK193: -x- | AL193: -x- | AM193: -x- | AT193: -x- | AU193: -x- | BB193: -x- | BC193: -x-
M194: -x- | N194: -x- | U194: -x- | V194: -x- | AC194: -x- | AD194: -x- | AK194: -x- | AL194: -x- | AM194: -x- | AT194: -x- | AU194: -x- | BB194: -x- | BC194: -x-
M195: -x- | N195: -x- | U195: -x- | V195: -x- | AC195: -x- | AD195: -x- | AK195: -x- | AL195: -x- | AM195: -x- | AT195: -x- | AU195: -x- | BB195: -x- | BC195: -x-
M196: -x- | N196: -x- | U196: -x- | V196: -x- | AC196: -x- | AD196: -x- | AK196: -x- | AL196: -x- | AM196: -x- | AT196: -x- | AU196: -x- | BB196: -x- | BC196: -x-
M197: -x- | N197: -x- | U197: -x- | V197: -x- | AC197: -x- | AD197: -x- | AK197: -x- | AL197: -x- | AM197: -x- | AT197: -x- | AU197: -x- | BB197: -x- | BC197: -x-
M198: =IFERROR(MEDIAN(H198:L198),"-x-") -> -x- | N198: =IFERROR(AVERAGEIFS(H198:L198,H198:L198,">0",H198:L198,"<50"),"-x-") -> -x- | U198: =IFERROR(MEDIAN(P198:T198),"-x-") -> -x- | V198: =IFERROR(AVERAGEIFS(P198:T198,P198:T198,">0",P198:T198,"<50"),"-x-") -> -x- | AC198: =IFERROR(MEDIAN(X198:AB198),"-x-") -> -x- | AD198: =IFERROR(AVERAGE(X198:AB198),"-x-") -> -x- | AK198: =IF(MAX(AF198:AJ198)=0,"-x-",MAX(AF198:AJ198)) -> -x- | AL198: =IFERROR(AJ198/AK198,"-x-") -> -x- | AM198: -x- | AT198: =IFERROR(MEDIAN(AO198:AS198),"-x-") -> -x- | AU198: =IFERROR(AVERAGEIFS(AO198:AS198,AO198:AS198,">0",AO198:AS198,"<50"),"-x-") -> -x- | BB198: =IFERROR(MEDIAN(AW198:BA198),"-x-") -> -x- | BC198: =IFERROR(AVERAGEIFS(AW198:BA198,AW198:BA198,">0",AW198:BA198,"<50"),"-x-") -> -x-
M199: =IFERROR(MEDIAN(H199:L199),"-x-") -> -x- | N199: -x- | U199: =IFERROR(MEDIAN(P199:T199),"-x-") -> -x- | V199: -x- | AC199: =IFERROR(MEDIAN(X199:AB199),"-x-") -> -x- | AD199: -x- | AK199: =IF(MAX(AF199:AJ199)=0,"-x-",MAX(AF199:AJ199)) -> -x- | AL199: =IFERROR(AJ199/AK199,"-x-") -> -x- | AM199: =IFERROR(AVERAGEIFS(AF199:AJ199,AF199:AJ199,">0",AF199:AJ199,"<30"),"-x-") -> -x- | AT199: =IFERROR(MEDIAN(AO199:AS199),"-x-") -> -x- | AU199: -x- | BB199: =IFERROR(MEDIAN(AW199:BA199),"-x-") -> -x- | BC199: -x-
M200: =IFERROR(MEDIAN(H200:L200),"-x-") -> -x- | N200: -x- | U200: =IFERROR(MEDIAN(P200:T200),"-x-") -> -x- | V200: -x- | AC200: =IFERROR(MEDIAN(X200:AB200),"-x-") -> -x- | AD200: -x- | AK200: =IF(MAX(AF200:AJ200)=0,"-x-",MAX(AF200:AJ200)) -> -x- | AL200: =IFERROR(AJ200/AK200,"-x-") -> -x- | AM200: -x- | AT200: =IFERROR(MEDIAN(AO200:AS200),"-x-") -> -x- | AU200: -x- | BB200: =IFERROR(MEDIAN(AW200:BA200),"-x-") -> -x- | BC200: -x-

Sheet Dividendos
B2: Data: | C2: =Factsheet!AC2 -> 2020-09-03 | D2: ← No modificar
F3: DIVIDENDOS+JCP's ANUALIZADOS
F5: =EOMONTH(H5,-12) -> 2016-12-31 | H5: =EOMONTH(J5,-12) -> 2017-12-31 | J5: =EOMONTH(L5,-12) -> 2018-12-31 | L5: =DATE(YEAR(N5)-1,12,31) -> 2019-12-31 | N5: =$C$2 -> 2020-09-03 | P5: Indicadores dos Últimos 5 anos
B6: =_xll.ECOSECURITIES("stock","active","true",,"xbue",,,"sector Economatica="&SUBSTITUTE(_xll.ECONOMATICA([1]Factsheet!B4,"sector economatica"),",","\,")) -> Codigo | C6: =_xll.ECONOMATICA($B$7:$B$195,"name") -> Nombre | D6: =_xll.ECONOMATICA($B$7:$B$198,"Sector Economatica",,,,,,,,,"Sector Economatica") -> Sector Economatica | E6: =_xll.ECONOMATICA($B$7:$B$198,"Sector NAICS",,,,,,,,,"Sector NAICS") -> Sector NAICS | F6: =_xll.ECONOMATICA($B$7:$B$195,"Div Yld (start)",,F5,,,,"DECIMAL",,,"% Dividend Yield") -> % Dividend Yield | G6: =_xll.ECONOMATICA($B$7:$B$195,"Divid per Share",,F5,,,,,,,"$") -> $ | H6: =_xll.ECONOMATICA($B$7:$B$195,"Div Yld (start)",,H5,,,,"DECIMAL",,,"% Dividend Yield") -> % Dividend Yield | I6: =_xll.ECONOMATICA($B$7:$B$195,"Divid per Share",,H5,,,,,,,"$") -> $ | J6: =_xll.ECONOMATICA($B$7:$B$195,"Div Yld (start)",,J5,,,,"DECIMAL",,,"% Dividend Yield") -> % Dividend Yield | K6: =_xll.ECONOMATICA($B$7:$B$195,"Divid per Share",,J5,,,,,,,"$") -> $ | L6: =_xll.ECONOMATICA($B$7:$B$195,"Div Yld (start)",,L5,,,,"DECIMAL",,,"% Dividend Yield") -> % Dividend Yield | M6: =_xll.ECONOMATICA($B$7:$B$195,"Divid per Share",,L5,,,,,,,"$") -> $ | N6: =_xll.ECONOMATICA($B$7:$B$195,"Div Yld (start)",,N5,,,,"DECIMAL",,,"% Dividend Yield") -> % Dividend Yield | O6: =_xll.ECONOMATICA($B$7:$B$195,"Divid per Share",,N5,,,,,,,"$") -> $ | P6: Média | Q6: Mediana | R6: Máximo | S6: Mínimo
B7: CAPX<XBUE> | C7: Capex | D7: Energía Eléctrica | E7: Generación, transmisión y suministro de energía eléctrica | F7: 0 | G7: 0 | H7: 0 | I7: 0 | J7: 0 | K7: 0 | L7: 0 | M7: 0 | N7: 0 | O7: 0 | P7: =IF(MAX(,,F7,H7,J7,L7,N7)=0,"",AVERAGE(,,F7,H7,J7,L7,N7)) ->  | Q7: =IF(MAX(,,F7,H7,J7,L7,N7)=0,"",MEDIAN(,,F7,H7,J7,L7,N7)) ->  | R7: =IF(MAX(,,F7,H7,J7,L7,N7)=0,"",MAX(,,F7,H7,J7,L7,N7)) ->  | S7: =IF(MAX(,,F7,H7,J7,L7,N7)=0,"",MIN(,,F7,H7,J7,L7,N7)) -> 
B8: CEPU<XBUE> | C8: Central Puerto | D8: Energía Eléctrica | E8: Generación, transmisión y suministro de energía eléctrica | F8: 0.07872340426 | G8: 0.925 | H8: 0.03736263736 | I8: 0.85 | J8: 0.02201257862 | K8: 0.7 | L8: 0.02132132132 | M8: 0.71 | N8: 0.04423676012 | O8: 0.71 | P8: 0.02909381453 | Q8: =IF(MAX(,,F8,H8,J8,L8,N8)=0,"",MEDIAN(,,F8,H8,J8,L8,N8)) -> 0.02201257862 | R8: 0.07872340426 | S8: 0
B9: EDN<XBUE> | C9: Edenor | D9: Energía Eléctrica | E9: Generación, transmisión y suministro de energía eléctrica | F9: 0 | G9: 0 | H9: 0 | I9: 0 | J9: 0 | K9: 0 | L9: 0 | M9: 0 | N9: 0 | O9: 0
B10: CECO2<XBUE> | C10: Enel Generacion Costanera S.A. | D10: Energía Eléctrica | E10: Generación, transmisión y suministro de energía eléctrica | F10: 0 | G10: 0 | H10: 0 | I10: 0 | J10: 0 | K10: 0 | L10: 0.3457645631 | M10: 2.8491 | N10: 0 | O10: 0 | P10: 0.04939493759 | Q10: 0 | R10: 0.3457645631 | S10: 0
B11: PAMP<XBUE> | C11: Pampa Energia S.A. | D11: Energía Eléctrica | E11: Empresas de electricidad, gas y agua | F11: 0 | G11: 0 | H11: 0 | I11: 0 | J11: 0 | K11: 0 | L11: 0 | M11: 0 | N11: 0 | O11: 0
B12: PGR<XBUE> | C12: Phoenix Global Resources Plc | D12: Energía Eléctrica | E12: Empresas de electricidad, gas y agua | G12: 0 | H12: 0 | I12: 0 | J12: 0 | K12: 0 | L12: 0 | M12: 0 | N12: 0 | O12: 0
B13: TRAN<XBUE> | C13: Transener | D13: Energía Eléctrica | E13: Generación, transmisión y suministro de energía eléctrica | F13: 0 | G13: 0 | H13: 0 | I13: 0 | J13: 0.06842696629 | K13: 3.3495 | L13: 0.1647325194 | M13: 7.4212 | N13: 0 | O13: 0 | P13: 0.03330849796 | Q13: 0 | R13: 0.1647325194 | S13: 0
P39: =IF(MAX(,,F39,H39,J39,L39,N39)=0,"",AVERAGE(,,F39,H39,J39,L39,N39)) ->  | R39: =IF(MAX(,,F39,H39,J39,L39,N39)=0,"",MAX(,,F39,H39,J39,L39,N39)) ->  | S39: =IF(MAX(,,F39,H39,J39,L39,N39)=0,"",MIN(,,F39,H39,J39,L39,N39)) -> 
P71: =IF(MAX(,,F71,H71,J71,L71,N71)=0,"",AVERAGE(,,F71,H71,J71,L71,N71)) ->  | R71: =IF(MAX(,,F71,H71,J71,L71,N71)=0,"",MAX(,,F71,H71,J71,L71,N71)) ->  | S71: =IF(MAX(,,F71,H71,J71,L71,N71)=0,"",MIN(,,F71,H71,J71,L71,N71)) -> 
Q72: =IF(MAX(,,F72,H72,J72,L72,N72)=0,"",MEDIAN(,,F72,H72,J72,L72,N72)) -> 
P103: =IF(MAX(,,F103,H103,J103,L103,N103)=0,"",AVERAGE(,,F103,H103,J103,L103,N103)) ->  | R103: =IF(MAX(,,F103,H103,J103,L103,N103)=0,"",MAX(,,F103,H103,J103,L103,N103)) ->  | S103: =IF(MAX(,,F103,H103,J103,L103,N103)=0,"",MIN(,,F103,H103,J103,L103,N103)) -> 
P135: =IF(MAX(,,F135,H135,J135,L135,N135)=0,"",AVERAGE(,,F135,H135,J135,L135,N135)) ->  | R135: =IF(MAX(,,F135,H135,J135,L135,N135)=0,"",MAX(,,F135,H135,J135,L135,N135)) ->  | S135: =IF(MAX(,,F135,H135,J135,L135,N135)=0,"",MIN(,,F135,H135,J135,L135,N135)) -> 
Q136: =IF(MAX(,,F136,H136,J136,L136,N136)=0,"",MEDIAN(,,F136,H136,J136,L136,N136)) -> 
P167: =IF(MAX(,,F167,H167,J167,L167,N167)=0,"",AVERAGE(,,F167,H167,J167,L167,N167)) ->  | R167: =IF(MAX(,,F167,H167,J167,L167,N167)=0,"",MAX(,,F167,H167,J167,L167,N167)) ->  | S167: =IF(MAX(,,F167,H167,J167,L167,N167)=0,"",MIN(,,F167,H167,J167,L167,N167)) -> 

Sheet Base Factsheet
A1: Planilla Auxiliar - No modificar
A2: Inicio de serie | B2: =_xll.ECONOMATICA(B5,"Series Start Date") -> 1993-07-07
A3: Período: | B3: =IF(Factsheet!AC15="DESDE O INÍCIO",B2,Factsheet!AC15) -> 12M | C3: Máximo: | D3: =ROUNDUP(MAX($B$8:$D$10000),-1) -> 290
A4: Fecha Final | B4: =Factsheet!AC2:AC2 -> 2020-09-03 | C4: Mínimo: | D4: =ROUNDDOWN(MIN($B$8:$D$10000),-1) -> 40
A5: Código: | B5: =Factsheet!B4&"<XBUE>" -> YPFD<XBUE> | C5: =AtualizarLimitesGrafico("Factsheet","Base100",D4,D3) -> 
A7: Data | B7: =_xll.ECONOMATICA(B5,"ticker") -> YPFD | C7: MERVAL | D7: GGAL
A8: =_xll.ECONOMATICA(B5,"close",,B4,$B$3,"d",,,"true","false",,{"def.defdef=7"}) -> 2019-09-03 | B8: 100 | C8: =_xll.ECONOMATICA(C7,"close",,B4,B3,"d",,,"false","false",,{"def.defdef=7"}) -> 100 | D8: =_xll.ECONOMATICA("GGAL","close",,B4,B3,"d",,,"false","false",,{"def.defdef=7"}) -> 100
A9: 2019-09-04 | B9: 104.7320807 | C9: 106.6456286 | D9: 113.6708861
A10: 2019-09-05 | B10: 117.1388806 | C10: 116.1088024 | D10: 121.9409283
A11: 2019-09-06 | B11: 120.9464161 | C11: 119.7030697 | D11: 128.5232068
A12: 2019-09-09 | B12: 114.5044239 | C12: 117.801905 | D12: 127.9324895
A13: 2019-09-10 | B13: 119.246446 | C13: 122.9963707 | D13: 134.4303797
A14: 2019-09-11 | B14: 118.2920767 | C14: 123.7901179 | D14: 134.5991561
A15: 2019-09-12 | B15: 118.8388508 | C15: 125.7713529 | D15: 136.371308
A16: 2019-09-13 | B16: 124.9328959 | C16: 130.039413 | D16: 136.0337553
A17: 2019-09-16 | B17: 125.3007257 | C17: 132.5730605 | D17: 139.3248945
A18: 2019-09-17 | B18: 122.4276767 | C18: 130.2828651 | D18: 141.5189873
A19: 2019-09-18 | B19: 122.5668556 | C19: 130.1516325 | D19: 138.9873418
A20: 2019-09-19 | B20: 127.1796401 | C20: 131.6062523 | D20: 140.2531646
A21: 2019-09-20 | B21: 126.284919 | C21: 130.0514689 | D21: 137.6371308
A22: 2019-09-23 | B22: 121.1949498 | C22: 125.9696061 | D22: 135.021097
A23: 2019-09-24 | B23: 116.6219306 | C23: 120.2020298 | D23: 129.8734177
A24: 2019-09-25 | B24: 116.5523412 | C24: 121.8137656 | D24: 133.3333333
A25: 2019-09-26 | B25: 115.5084999 | C25: 121.5285283 | D25: 134.092827
A26: 2019-09-27 | B26: 119.7136892 | C26: 124.4284342 | D26: 138.8185654
A27: 2019-09-30 | B27: 117.7950094 | C27: 125.6019217 | D27: 137.6371308
A28: 2019-10-01 | B28: 123.4019286 | C28: 129.9194586 | D28: 142.1940928
A29: 2019-10-02 | B29: 126.6129834 | C29: 133.0562485 | D29: 147.4261603
A30: 2019-10-03 | B30: 123.4516354 | C30: 131.2148017 | D30: 144.3881857
A31: 2019-10-04 | B31: 129.2374988 | C31: 137.4830234 | D31: 151.5611814
A32: 2019-10-07 | B32: 124.4159459 | C32: 133.6993181 | D32: 148.1012658
A33: 2019-10-08 | B33: 123.92882 | C33: 130.7453549 | D33: 143.2911392
A34: 2019-10-09 | B34: 123.441694 | C34: 131.094977 | D34: 145.4852321
A35: 2019-10-10 | B35: 129.2275574 | C35: 137.166285 | D35: 152.6582278
A36: 2019-10-11 | B36: 128.412367 | C36: 137.4035579 | D36: 152.4050633
A37: 2019-10-14
A38: 2019-10-15 | B38: 127.2392882 | C38: 135.3966986 | D38: 152.742616
A39: 2019-10-16 | B39: 124.7440103 | C39: 132.9143428 | D39: 149.3670886
A40: 2019-10-17 | B40: 133.7011631 | C40: 138.2549057 | D40: 154.9367089
A41: 2019-10-18 | B41: 133.6912218 | C41: 138.1397045 | D41: 157.0464135
A42: 2019-10-21 | B42: 137.1706929 | C42: 140.6557218 | D42: 161.9409283
A43: 2019-10-22 | B43: 141.13729 | C43: 143.9078857 | D43: 164.7257384
A44: 2019-10-23 | B44: 139.58644 | C44: 141.6254251 | D44: 164.0506329
A45: 2019-10-24 | B45: 146.1278457 | C45: 144.6546191 | D45: 164.4725738
A46: 2019-10-25 | B46: 151.1780495 | C46: 149.1749031 | D46: 170.8860759
A47: 2019-10-28 | B47: 145.1337111 | C47: 143.3626032 | D47: 155.2742616
A48: 2019-10-29 | B48: 143.493389 | C48: 140.6275049 | D48: 145.1476793
A49: 2019-10-30 | B49: 148.2453524 | C49: 146.4386813 | D49: 151.3080169
A50: 2019-10-31 | B50: 149.9254399 | C50: 151.2185784 | D50: 155.443038
A51: 2019-11-01 | B51: 151.9037678 | C51: 154.4500874 | D51: 158.649789
A52: 2019-11-04 | B52: 155.4329456 | C52: 161.0851724 | D52: 171.2236287
A53: 2019-11-05 | B53: 154.9756437 | C53: 159.3196478 | D53: 169.7046414
A54: 2019-11-06 | B54: 147.0225669 | C54: 153.4019989 | D54: 163.1223629
A55: 2019-11-07 | B55: 149.6868476 | C55: 154.9952835 | D55: 169.4514768
A56: 2019-11-08 | B56: 147.628989 | C56: 147.4844796 | D56: 164.3881857
A57: 2019-11-11 | B57: 142.3501342 | C57: 145.4351868 | D57: 163.3755274
A58: 2019-11-12 | B58: 140.9484044 | C58: 144.455761 | D58: 157.1308017
A59: 2019-11-13 | B59: 136.7929218 | C59: 139.7481563 | D59: 150.1265823
A60: 2019-11-14 | B60: 138.522716 | C60: 134.039909 | D60: 142.7848101
A61: 2019-11-15 | B61: 140.9285217 | C61: 137.634738 | D61: 149.7890295
A62: 2019-11-18
A63: 2019-11-19 | B63: 136.7630977 | C63: 139.3682431 | D63: 152.4050633
A64: 2019-11-20 | B64: 139.8846804 | C64: 144.4167845 | D64: 158.1434599
A65: 2019-11-21 | B65: 137.7373496 | C65: 143.6660757 | D65: 157.6371308
A66: 2019-11-22 | B66: 141.0080525 | C66: 145.1414801 | D66: 159.9156118
A67: 2019-11-25 | B67: 141.7437121 | C67: 144.7348191 | D67: 159.4092827
A68: 2019-11-26 | B68: 135.1128343 | C68: 138.7654032 | D68: 153.7552743
A69: 2019-11-27 | B69: 141.0577592 | C69: 146.6145942 | D69: 168.3544304
A70: 2019-11-28 | B70: 142.3103688 | C70: 147.8679361 | D70: 168.3544304
A71: 2019-11-29 | B71: 143.5033304 | C71: 149.0796655 | D71: 168.3544304
A72: 2019-12-02 | B72: 140.2127448 | C72: 144.5283126 | D72: 162.278481
A73: 2019-12-03 | B73: 135.7192564 | C73: 141.5458733 | D73: 160.6751055
A74: 2019-12-04 | B74: 143.6027438 | C74: 149.9089323 | D74: 172.9113924
A75: 2019-12-05 | B75: 146.1477284 | C75: 153.1537935 | D75: 176.371308
A76: 2019-12-06 | B76: 151.048812 | C76: 157.9886985 | D76: 185.0632911
A77: 2019-12-09 | B77: 156.5463764 | C77: 157.3280852 | D77: 180.4219409
A78: 2019-12-10 | B78: 148.0962322 | C78: 149.7590758 | D78: 168.1012658
A79: 2019-12-11 | B79: 149.239487 | C79: 151.3237546 | D79: 170.8016878
A80: 2019-12-12 | B80: 152.6891341 | C80: 153.4198883 | D80: 174.4303797
A81: 2019-12-13 | B81: 151.9435332 | C81: 158.8859366 | D81: 183.2911392
A82: 2019-12-16 | B82: 155.3136495 | C82: 162.5610089 | D82: 184.3881857
A83: 2019-12-17 | B83: 152.1025947 | C83: 159.5308643 | D83: 181.4345992
A84: 2019-12-18 | B84: 155.959837 | C84: 162.5616138 | D84: 183.7974684
A85: 2019-12-19 | B85: 157.0931504 | C85: 164.5613865 | D85: 183.628692
A86: 2019-12-20 | B86: 162.4217119 | C86: 166.9354117 | D86: 185.4008439
A87: 2019-12-23 | B87: 164.8275176 | C87: 172.4787217 | D87: 198.2278481
A88: 2019-12-24
A89: 2019-12-25
A90: 2019-12-26 | B90: 172.0747589 | C90: 182.6906598 | D90: 211.814346
A91: 2019-12-27 | B91: 173.7250224 | C91: 180.112764 | D91: 204.1350211
A92: 2019-12-30 | B92: 170.4344368 | C92: 180.0673058 | D92: 205.2320675
A93: 2019-12-31
A94: 2020-01-01
A95: 2020-01-02 | B95: 166.5871359 | C95: 177.6282909 | D95: 207.5949367
A96: 2020-01-03 | B96: 167.3327369 | C96: 175.0018257 | D96: 203.8818565
A97: 2020-01-06 | B97: 171.1502137 | C97: 179.1955192 | D97: 210.8016878
A98: 2020-01-07 | B98: 166.5970772 | C98: 177.6660575 | D98: 209.2827004
A99: 2020-01-08 | B99: 167.6707426 | C99: 177.2352847 | D99: 212.4894515
A100: 2020-01-09 | B100: 169.7882493 | C100: 181.6414479 | D100: 220
A101: 2020-01-10 | B101: 170.6034397 | C101: 184.6864571 | D101: 226.0759494
A102: 2020-01-13 | B102: 169.5297743 | C102: 181.5640133 | D102: 214.7679325
A103: 2020-01-14 | B103: 169.5695397 | C103: 179.9044859 | D103: 212.0675105
A104: 2020-01-15 | B104: 170.1560791 | C104: 178.2298777 | D104: 206.1603376
A105: 2020-01-16 | B105: 171.0309176 | C105: 183.0528996 | D105: 212.4894515
A106: 2020-01-17 | B106: 164.9865792 | C106: 182.9555879 | D106: 213.3333333
A107: 2020-01-20 | B107: 169.6490705 | C107: 186.0416911 | D107: 216.2025316
A108: 2020-01-21 | B108: 161.0895715 | C108: 179.2655214 | D108: 208.7763713
A109: 2020-01-22 | B109: 164.1216821 | C109: 181.4972952 | D109: 210.2953586
A110: 2020-01-23 | B110: 161.0895715 | C110: 177.7719251 | D110: 204.8945148
A111: 2020-01-24 | B111: 158.34576 | C111: 172.489827 | D111: 197.8902954
A112: 2020-01-27 | B112: 157.9182821 | C112: 171.1362351 | D112: 193.5864979
A113: 2020-01-28 | B113: 158.1767571 | C113: 176.430173 | D113: 205.7383966
A114: 2020-01-29 | B114: 158.7434139 | C114: 174.3202549 | D114: 206.5822785
A115: 2020-01-30 | B115: 160.2743812 | C115: 174.5515646 | D115: 209.6202532
A116: 2020-01-31 | B116: 156.5165523 | C116: 173.2988277 | D116: 206.2447257
A117: 2020-02-03 | B117: 162.1731782 | C117: 179.6596078 | D117: 215.2742616
A118: 2020-02-04 | B118: 161.6363456 | C118: 177.3120711 | D118: 213.164557
A119: 2020-02-05 | B119: 164.2210955 | C119: 176.1596707 | D119: 210.5485232
A120: 2020-02-06 | B120: 164.807635 | C120: 176.7602636 | D120: 210.6329114
A121: 2020-02-07 | B121: 162.739835 | C121: 178.0903054 | D121: 213.9240506
A122: 2020-02-10 | B122: 164.2708023 | C122: 177.3948638 | D122: 213.3333333
A123: 2020-02-11 | B123: 158.1071677 | C123: 172.0865798 | D123: 207.257384
A124: 2020-02-12 | B124: 156.9539716 | C124: 172.5690332 | D124: 206.3291139
A125: 2020-02-13 | B125: 152.4207178 | C125: 167.0955094 | D125: 195.2742616
A126: 2020-02-14 | B126: 154.3990456 | C126: 167.0013953 | D126: 196.9620253
A127: 2020-02-17 | B127: 156.1188985 | C127: 169.3891185 | D127: 199.1561181
A128: 2020-02-18 | B128: 153.0271399 | C128: 164.8808904 | D128: 190.1265823
A129: 2020-02-19 | B129: 153.8423303 | C129: 165.891558 | D129: 193.164557
A130: 2020-02-20 | B130: 155.9101302 | C130: 168.3570613 | D130: 194.8523207
A131: 2020-02-21 | B131: 152.599662 | C131: 166.8060805 | D131: 195.1054852
A132: 2020-02-24
A133: 2020-02-25
A134: 2020-02-26 | B134: 139.4870265 | C134: 157.3849944 | D134: 182.4472574
A135: 2020-02-27 | B135: 135.0432449 | C135: 152.9118106 | D135: 181.0126582
A136: 2020-02-28 | B136: 131.0766478 | C136: 151.1234273 | D136: 173.3333333
A137: 2020-03-02 | B137: 132.2000199 | C137: 156.6547677 | D137: 179.4936709
A138: 2020-03-03 | B138: 132.4485535 | C138: 155.5570728 | D138: 177.2151899
A139: 2020-03-04 | B139: 133.035093 | C139: 160.9331552 | D139: 184.6413502
A140: 2020-03-05 | B140: 126.8217517 | C140: 158.8972147 | D140: 183.2067511
A141: 2020-03-06 | B141: 120.1014017 | C141: 152.2004673 | D141: 172.4050633
A142: 2020-03-09 | B142: 91.45044239 | C142: 131.2752975 | D142: 144.978903
A143: 2020-03-10 | B143: 102.8134009 | C143: 141.8722477 | D143: 157.2995781
A144: 2020-03-11 | B144: 95.23809524 | C144: 135.7679695 | D144: 150.2109705
A145: 2020-03-12 | B145: 83.44765881 | C145: 122.512016 | D145: 133.164557
A146: 2020-03-13 | B146: 80.39566557 | C146: 122.9271895 | D146: 135.8649789
A147: 2020-03-16 | B147: 70.18590317 | C147: 111.0421124 | D147: 111.6455696
A148: 2020-03-17 | B148: 63.28660901 | C148: 111.5864011 | D148: 114.092827
A149: 2020-03-18 | B149: 46.84362263 | C149: 95.44121479 | D149: 93.08016878
A150: 2020-03-19 | B150: 56.22825331 | C150: 97.90123035 | D150: 94.59915612
A151: 2020-03-20 | B151: 63.44567054 | C151: 103.233151 | D151: 103.0379747
A152: 2020-03-23
A153: 2020-03-24
A154: 2020-03-25 | B154: 75.13669351 | C154: 113.8098783 | D154: 112.2362869
A155: 2020-03-26 | B155: 70.81220797 | C155: 110.11925 | D155: 110.5485232
A156: 2020-03-27 | B156: 67.76021473 | C156: 103.96018 | D156: 100.4219409
A157: 2020-03-30 | B157: 68.69470126 | C157: 105.3673106 | D157: 97.80590717
A158: 2020-03-31
A159: 2020-04-01 | B159: 72.77065315 | C159: 109.4293395 | D159: 101.5189873
A160: 2020-04-02 | B160: 76.15071081 | C160: 112.3633823 | D160: 108.4388186
A161: 2020-04-03 | B161: 77.21443483 | C161: 114.533148 | D161: 109.7890295
A162: 2020-04-06 | B162: 77.90038771 | C162: 116.3358343 | D162: 107.6793249
A163: 2020-04-07 | B163: 75.24604831 | C163: 115.357143 | D163: 106.0759494
A164: 2020-04-08 | B164: 80.34595884 | C164: 121.0674644 | D164: 114.092827
A165: 2020-04-09
A166: 2020-04-10
A167: 2020-04-13 | B167: 80.74361269 | C167: 124.79681 | D167: 118.2278481
A168: 2020-04-14 | B168: 86.00258475 | C168: 133.0108767 | D168: 130.1265823
A169: 2020-04-15 | B169: 86.8973059 | C169: 138.5813233 | D169: 139.8312236
A170: 2020-04-16 | B170: 79.65006462 | C170: 129.9695404 | D170: 134.3459916
A171: 2020-04-17 | B171: 79.89859827 | C171: 129.129298 | D171: 128.0168776
A172: 2020-04-20 | B172: 78.97405309 | C172: 131.9486581 | D172: 131.8987342
A173: 2020-04-21 | B173: 75.77293966 | C173: 130.6581546 | D173: 127.5949367
A174: 2020-04-22 | B174: 78.41733771 | C174: 132.0314077 | D174: 125.9915612
A175: 2020-04-23 | B175: 78.88458097 | C175: 131.2711492 | D175: 120.8438819
A176: 2020-04-24 | B176: 73.62560891 | C176: 126.4278612 | D176: 115.2742616
A177: 2020-04-27 | B177: 74.7887464 | C177: 129.5742008 | D177: 117.721519
A178: 2020-04-28 | B178: 87.3943732 | C178: 142.8772546 | D178: 137.5527426
A179: 2020-04-29 | B179: 89.80017894 | C179: 143.3966968 | D179: 139.3248945
A180: 2020-04-30 | B180: 86.19147033 | C180: 141.4858529 | D180: 136.1181435
A181: 2020-05-01
A182: 2020-05-04 | B182: 83.42777612 | C182: 139.9494342 | D182: 137.4683544
A183: 2020-05-05 | B183: 87.55343474 | C183: 144.9586533 | D183: 141.0126582
A184: 2020-05-06 | B184: 87.44407993 | C184: 147.6047797 | D184: 146.0759494
A185: 2020-05-07 | B185: 92.3153395 | C185: 154.9131821 | D185: 158.649789
A186: 2020-05-08 | B186: 94.99950293 | C186: 156.3550978 | D186: 159.2405063
A187: 2020-05-11 | B187: 97.56437022 | C187: 166.7158555 | D187: 176.8776371
A188: 2020-05-12 | B188: 103.3204096 | C188: 169.1015909 | D188: 178.7341772
A189: 2020-05-13 | B189: 96.79888657 | C189: 163.5234527 | D189: 168.3544304
A190: 2020-05-14 | B190: 101.4414952 | C190: 169.4989614 | D190: 176.371308
A191: 2020-05-15 | B191: 101.5906154 | C191: 170.2018354 | D191: 173.5864979
A192: 2020-05-18 | B192: 104.8314942 | C192: 174.0838894 | D192: 180
A193: 2020-05-19 | B193: 103.8274182 | C193: 170.2035206 | D193: 172.0675105
A194: 2020-05-20 | B194: 106.0343971 | C194: 172.0202937 | D194: 176.8776371
A195: 2020-05-21 | B195: 109.653047 | C195: 178.8448168 | D195: 187.3417722
A196: 2020-05-22 | B196: 109.076449 | C196: 177.0050553 | D196: 184.556962
A197: 2020-05-25
A198: 2020-05-26 | B198: 113.6494681 | C198: 177.4264944 | D198: 183.4599156
A199: 2020-05-27 | B199: 117.2880008 | C199: 174.7098042 | D199: 181.6877637
A200: 2020-05-28 | B200: 112.8839845 | C200: 168.46254 | D200: 169.2827004
A201: 2020-05-29 | B201: 111.6214335 | C201: 163.4453268 | D201: 157.2151899
... 69 more rows
